{"text_format":"1","workbook":"xlsx","n_sheets":16,"sheets":["名称","高圧ガス設備試験申請書","機器番号","複合機器検査手数料","高圧ガス設備試験申請書内容","KHPTHA","KHPTHB","KHPTHC","KHPTHF","KHPTHI","KHPTRA","KHPTRB","KHPTRC","KHPTRF","KHPTRH","KHPTRI"],"not_rendered":{"charts":0,"images":21,"macros":1,"external_links":21,"defined_names":775,"comments":4,"pivot_tables":0},"unopened":[],"bounds":{"document_bytes":16777216,"sheet_cells":100000,"rows_first":2000,"rows_last":500,"rows_between":2000,"halvings":0,"cell_chars":16384,"cell_head_chars":4096},"cells_cut":0,"cells_raw":0,"read":"whole","date_system":"1900"}

{"sheet":"名称","index":0,"n_rows":155,"n_cols":22,"rows_kept":155,"cut":false,"hidden":true,"merged":[[0,18,0,20],[27,18,27,21],[44,3,44,4],[0,15,0,16],[44,8,44,9],[27,8,27,9],[140,0,140,1],[152,0,152,1],[140,3,140,4],[140,8,140,9],[104,0,104,1],[104,3,104,4],[125,0,125,1],[81,0,81,1],[81,3,81,4],[0,12,0,13],[12,12,12,13],[13,12,13,13],[27,12,27,13],[44,0,44,1],[0,0,0,1],[0,3,0,4],[23,0,23,1],[29,0,29,1],[29,3,29,4],[0,8,0,9],[10,8,10,9]]}
["機器の種類",null,null,"処理容積",null,null,"認定",null,"規定最小肉厚",null,null,null,"肉厚の確認方法",null,null,"部門",null,null,"機器の種類"]
["MEICD",null,null,null,null,null,null,null,null,null,null,null,null,null,null,1060,"機器検査事業部門","東","MEICD"]
["001","A 貯槽",null,"吐出量（m3/D）","m3/D",null,"認定品",null,"001","別紙「高圧ガス設備試験申請書内容」参照",null,null,"001","強度計算",null,2001,"北海道支部","北","001","A 貯槽","A"]
["002","B 熱交換器",null,"吐出量（m3/D(標準状態)）","m3/D(標準状態)",null,null,null,"002","別紙「管類明細」参照",null,null,"002","加圧試験",null,3001,"東北支部","仙","002","B 熱交換器","B"]
["003","C 蒸発器",null,"内容積（L）","L",null,null,null,"003","認定試験者試験等成績書による",null,null,"003","応力測定試験",null,4001,"中部支部","名","003","C 蒸発器","C"]
["004","D 凝縮器",null,"呼び径（A）","A",null,null,null,"004","特定設備検査による",null,null,"004","強度計算、加圧試験",null,5001,"近畿支部","大","004","D 凝縮器","D"]
["005","E その他の圧力容器類",null,"外径（mm）","mm",null,null,null,null,null,null,null,"005","強度計算、応力測定試験",null,6001,"中国支部","広","005","E その他の圧力容器類","E"]
["006","F 往復動式圧縮機",null,"内径（mm）","mm",null,null,null,null,null,null,null,"006","別紙「管類明細」参照",null,7001,"四国支部","四","006","F 往復動式圧縮機","F"]
["007","G 遠心式圧縮機",null,"別紙「高圧ガス設備試験申請書内容」参照",null,null,null,null,null,null,null,null,"007","別紙「高圧ガス設備試験申請書内容」参照",null,8001,"九州支部","九","007","G 遠心式圧縮機","G"]
["008","H 容積型圧縮機",null,null,null,null,null,null,null,null,null,null,"008","認定試験者試験等成績書による",null,null,null,null,"008","H 容積型圧縮機","H"]
["009","I 往復動式ポンプ",null,null,null,null,null,null,"主要部材質",null,null,null,"009","特定設備検査による",null,null,null,null,"009","I 往復動式ポンプ","I"]
["010","J 遠心式ポンプ",null,"単位",null,null,null,null,null,null,null,null,null,null,null,null,null,null,"010","J 遠心式ポンプ","J"]
["011","K 容積型ポンプ",null,null,null,null,null,null,"001","■(JIS G ■ 同等材) ",null,null,null,null,null,null,null,null,"011","K 容積型ポンプ","K"]
["012","L その他の回転機械類",null,"m3/D",null,null,null,null,"002","別紙「高圧ガス設備試験申請書内容」参照",null,null,"非破壊検査",null,null,null,null,null,"012","L その他の回転機械類","L"]
["013","M 管類",null,"m3/D(標準状態)",null,null,null,null,"003","別紙「管類明細」参照",null,null,"001","－",null,null,null,null,"013","M 管類","M"]
["014","N 弁類",null,"L",null,null,null,null,"004","認定試験者試験等成績書による",null,null,"002","放射線透過試験　■%　実施",null,null,null,null,"014","N 弁類","N"]
["015","N-Ⅱ 継手類",null,"A",null,null,null,null,"005","特定設備検査による",null,null,"300","放射線透過試験　長手 ■%　実施",null,null,null,null,"015","N-Ⅱ 継手類","N-Ⅱ"]
["016","O その他の附属機器類",null,"mm",null,null,null,null,null,null,null,null,"004","別紙「高圧ガス設備試験申請書内容」参照",null,null,null,null,"016","O その他の附属機器類","O"]
["017","O その他の附属機器類(バルク用液面計)",null,null,null,null,null,null,null,null,null,null,"005","別紙「管類明細」参照",null,null,null,null,"017","O その他の附属機器類(バルク用液面計)","O"]
["019","N-Ⅲ 継手類",null,null,null,null,null,null,null,null,null,null,"006","認定試験者試験等成績書による",null,null,null,null,"018","Z 複合機器","Z"]
[null,"⇦　左に同じ",null,null,null,null,null,null,null,null,null,null,"007","特定設備検査による",null,null,null,null,"019","N-Ⅲ 継手類","N-Ⅲ"]
[null,null,null,null,null,null,null,null,null,null,null,null,"008","浸透探傷試験"]
[null,null,null,null,null,null,null,null,null,null,null,null,"009","磁粉探傷試験"]
["複合機器の種類"]
[]
["018","Z 複合機器"]
[]
[null,null,null,null,null,null,null,null,"耐圧試験・気密試験",null,null,null,"高圧ガスの種類",null,null,null,null,null,"機器の処理容積等"]
[null,null,null,null,null,null,null,null,null,null,null,null,null,null,null,null,null,null,"001","吐出量（m3/D）","吐出量","m3/D"]
["設計圧力",null,null,"設計温度",null,null,null,null,"001","■ MPa",null,null,"001","毒性ガス（■）",null,null,null,null,"002","内容積（L）","内容積","L"]
[null,null,null,null,null,null,null,null,"002","第■段 ■ MPa",null,null,"002","毒性ガス",null,null,null,null,"003","呼び径（A）","呼び径","A"]
["001","■ MPa",null,"001","■ ℃",null,null,null,"003","■ライン: ■ MPa",null,null,"003","可燃性ガス（■）",null,null,null,null,"004","外径（mm）","外径","mm"]
["002","第■段 ■ MPa",null,"002","-■ ～ +■ ℃ ",null,null,null,"004","認定試験者試験等成績書による",null,null,"004","可燃性ガス",null,null,null,null,"005","内径（mm）","内径","mm"]
["003","入口側 ■ MPa 出口側 ■ MPa",null,"003","-■ / +■ ℃",null,null,null,"005","特定設備検査による",null,null,"005","毒性ガス・可燃性ガス（■）",null,null,null,null,"006","別紙「高圧ガス設備試験申請書内容」参照","別紙「高圧ガス設備試験申請書内容」参照"]
["004","VPN-■(■ MPa（常温))",null,"004","第■段 ■ ℃",null,null,null,"006","別紙「高圧ガス設備試験申請書内容」参照",null,null,"006","毒性ガス・可燃性ガス",null,null,null,null,201,"吐出量（m3/D(標準状態)）","吐出量","m3/D(標準状態)"]
["005","-0.1013～+■ MPa      ",null,"005","入口側 ■ ℃　出口側 ■ ℃",null,null,null,"007","別紙「管類明細」参照",null,null,"007","毒性ガス・可燃性ガス又は特殊高圧ガス以外のガス（■）"]
["006","-0.1013/+■ MPa",null,null,null,null,null,null,null,null,null,null,"008","毒性ガス・可燃性ガス又は特殊高圧ガス以外のガス"]
["007","■+0.1013 MPa",null,null,null,null,null,null,null,null,null,null,"009","毒・燃・特殊以外のガス（■）"]
[null,null,null,null,null,null,null,null,null,null,null,null,"010","毒・燃・特殊以外のガス"]
[null,null,null,null,null,null,null,null,null,null,null,null,"011","特殊高圧ガス（■）"]
[null,null,null,null,null,null,null,null,null,null,null,null,"012","特殊高圧ガス"]
[]
[]
[]
["備考",null,null,"国名",null,null,null,null,"手数料算定対象"]
[null,null,null,null,null,null,null,null,1,"対象"]
["001","気体耐圧試験実施",null,"0001","アメリカ",null,null,null,2,"対象外"]
["002","通達(平成30年3月30日付け20180323保局第12号)による。",null,"0002","米国"]
["003","応力測定試験　■",null,"0003","カナダ"]
["004","応力測定試験　（第三者検査機関により実施）",null,"0004","ドイツ"]
["005","加圧試験 ■",null,"0005","スイス"]
["006","加圧試験 （第三者検査機関により実施）",null,"0006","イギリス"]
["007","ASME Sec.Ⅷ Div.1 (1998 Addenda) UG-101による実証試験実施",null,"0007","欧州他"]
["008","合格証番号：99X99999",null,"0008","中国"]
["009","成績証明書番号：99X-99999",null,"0009","韓国"]
["010","整理番号：■",null,"0010","アジア他"]
["011","認定番号：MAB-■-■-■",null,"0011","その他"]
["012","成績書番号：■"]
["013","圧縮水素スタンド等に使用"]
[null,"一般則第99条適用（平成■･■･■原第■号平成■年■月■日付）"]
[null,"詳細基準事前評価適用(■高機業第■号平成■年■月■日付) "]
[null,"公開詳細基準事前評価適用（■高機業第■号令和■年■月■日）"]
[null,"一般詳細基準適用（■高機業第■号令和■年■月■日）"]
["N手数料"]
["呼び径開始","呼び径終了","外径開始","外径終了","ユニット数"]
[0,9.9999999999999995E-7,0,9.9999999999999995E-7,10]
[9.9999999999999995E-7,40,9.9999999999999995E-7,48.6,10]
[40,50,48.6,60.5,10]
[50,100,60.5,114.3,10]
[100,150,114.3,165.2,5]
[150,200,165.2,216.3,5]
[200,250,216.3,267.39999999999998,5]
[250,500,267.39999999999998,508,2]
[500,99999999,508,99999999,1]
[]
[]
[]
[]
["貯槽","熱交換器","蒸発器","凝縮器","その他の圧力容器類","往復動式圧縮機","遠心式圧縮機","容積型圧縮機","往復動式ポンプ","遠心式ポンプ","容積型ポンプ","その他の回転機械類","管類","弁類","継手類","その他の附属機器類","認定品等","同じ"]
["内容積（L）","内容積（L）","内容積（L）","内容積（L）","内容積（L）","吐出量（m3/D(標準状態)）","吐出量（m3/D(標準状態)）","吐出量（m3/D(標準状態)）","吐出量（m3/D）","吐出量（m3/D）","吐出量（m3/D）","吐出量（m3/D(標準状態)）","呼び径（A）","呼び径（A）","呼び径（A）","内容積（L）","内容積（L）","内容積（L）"]
[null,null,null,null,null,null,null,null,null,null,null,null,"外径（mm）","外径（mm）","外径（mm）","呼び径（A）","吐出量（m3/D(標準状態)）","吐出量（m3/D(標準状態)）"]
["機器の処理容積等",null,null,"複合機器検査手数料　機器の処理容積等",null,null,null,null,null,null,null,null,"内径（mm）","内径（mm）","内径（mm）","外径（mm）","吐出量（m3/D）","吐出量（m3/D）"]
["A 貯槽","貯槽",null,null,null,null,null,null,null,null,null,null,null,null,null,"内径（mm）","呼び径（A）","呼び径（A）"]
["B 熱交換器","熱交換器",null,"002","B 熱交換器",null,null,null,null,null,null,null,null,null,null,null,"外径（mm）","外径（mm）"]
["C 蒸発器","蒸発器",null,"003","C 蒸発器",null,null,null,null,null,null,null,null,null,null,null,"内径（mm）","内径（mm）"]
["D 凝縮器","凝縮器",null,"004","D 凝縮器"]
["E その他の圧力容器類","その他の圧力容器類",null,"005","E その他の圧力容器類"]
["F 往復動式圧縮機","往復動式圧縮機",null,"006","F 往復動式圧縮機"]
["G 遠心式圧縮機","遠心式圧縮機",null,"007","G 遠心式圧縮機"]
["H 容積型圧縮機","容積型圧縮機",null,"008","H 容積型圧縮機"]
["I 往復動式ポンプ","往復動式ポンプ",null,"009","I 往復動式ポンプ"]
["J 遠心式ポンプ","遠心式ポンプ",null,"010","J 遠心式ポンプ"]
["K 容積型ポンプ","容積型ポンプ",null,"011","K 容積型ポンプ"]
["L その他の回転機械類","その他の回転機械類",null,"012","L その他の回転機械類"]
["M 管類","管類",null,"013","M 管類"]
["N 弁類","弁類",null,"014","N 弁類"]
["N-Ⅱ 継手類","継手類",null,"015","N-Ⅱ 継手類"]
["O その他の附属機器類","その他の附属機器類",null,"016","O その他の附属機器類"]
["O その他の附属機器類(バルク用液面計)","その他の附属機器類",null,"017","O その他の附属機器類(バルク用液面計)"]
["N-Ⅲ 継手類","継手類",null,"019","N-Ⅲ 継手類"]
["認定品等","認定品等",null,"099","認定品等"]
["⇦　左に同じ","同じ"]
[]
[]
["備考",null,null,"備考"]
[]
["001","気体耐圧試験実施",null,"001","気体耐圧試験実施"]
["002","通達(平成30年3月30日付け20180323保局第12号)による。",null,"002","通達(平成30年3月30日付け20180323保局第12号)による。"]
["003","応力測定試験　■",null,"003","応力測定試験　■"]
["004","応力測定試験　（第三者検査機関により実施）",null,"004","応力測定試験　（第三者検査機関により実施）"]
["005","加圧試験 ■",null,"005","加圧試験 ■"]
["006","加圧試験 （第三者検査機関により実施）",null,"006","加圧試験 （第三者検査機関により実施）"]
["007","ASME Sec.Ⅷ Div.1 (1998 Addenda) UG-101による実証試験実施",null,"007","ASME Sec.Ⅷ Div.1 (1998 Addenda) UG-101による実証試験実施"]
["008","合格証番号：99X99999",null,"013","圧縮水素スタンド等に使用"]
["009","成績証明書番号：99X-99999",null,null,"一般則第99条適用（平成■･■･■原第■号令和■年■月■日付）"]
["010","整理番号：■",null,null,"詳細基準事前評価適用(■高機業第■号令和■年■月■日付) "]
["011","認定番号：MAB-■-■-■",null,null,"公開詳細基準事前評価適用（■高機業第■号令和■年■月■日）"]
["012","成績書番号：■",null,null,"一般詳細基準適用（■高機業第■号令和■年■月■日）"]
["013","圧縮水素スタンド等に使用"]
[null,"一般則第99条適用（平成■･■･■原第■号令和■年■月■日付）"]
[null,"詳細基準事前評価適用(■高機業第■号令和■年■月■日付) "]
[null,"公開詳細基準事前評価適用（■高機業第■号令和■年■月■日）"]
[null,"一般詳細基準適用（■高機業第■号令和■年■月■日）"]
[]
[]
["内径　手数料"]
["0.000001","40A未満"]
["40","40A以上 50A未満"]
["50","50A以上 100A未満"]
["100","100A以上 150A未満"]
["150","150A以上 200A未満"]
["250","250A以上 500A未満"]
["500","500A以上 "]
[]
[]
[]
[]
[]
[]
["申請内容用"]
["肉厚の確認方法",null,null,"非破壊検査",null,null,null,null,"高圧ガスの種類"]
[null,null,null,"001","－"]
["001","強度計算",null,"002","放射線透過試験　■%　実施",null,null,null,"001","毒性ガス（■）"]
["002","加圧試験",null,"003","放射線透過試験　長手 ■%　実施",null,null,null,"002","毒性ガス"]
["003","応力測定試験",null,"004","別紙「高圧ガス設備試験申請書内容」参照",null,null,null,"003","可燃性ガス（■）"]
["004","強度計算、加圧試験",null,"005","別紙「管類明細」参照",null,null,null,"004","可燃性ガス"]
["005","強度計算、応力測定試験",null,"006","認定試験者試験等成績書による",null,null,null,"005","毒性ガス・可燃性ガス（■）"]
["006","別紙「管類明細」参照",null,"007","特定設備検査による",null,null,null,"006","毒性ガス・可燃性ガス"]
["007","別紙「高圧ガス設備試験申請書内容」参照",null,"008","浸透探傷試験",null,null,null,"007","毒性ガス・可燃性ガス又は特殊高圧ガス以外のガス（■）"]
["008","認定試験者試験等成績書による",null,"009","磁粉探傷試験",null,null,null,"008","毒性ガス・可燃性ガス又は特殊高圧ガス以外のガス"]
["009","特定設備検査による",null,null,"同　左",null,null,null,"009","毒・燃・特殊以外のガス（■）"]
[null,"同　左",null,null,null,null,null,null,"010","毒・燃・特殊以外のガス"]
[null,null,null,null,null,null,null,null,"011","特殊高圧ガス（■）"]
[null,null,null,null,null,null,null,null,"012","特殊高圧ガス"]
[null,null,null,null,null,null,null,null,null,"同　左"]

{"sheet":"高圧ガス設備試験申請書","index":1,"n_rows":82,"n_cols":153,"rows_kept":82,"cut":false,"hidden":false,"merged":[[16,68,17,77],[16,78,17,83],[68,23,68,28],[2,1,2,40],[31,37,31,39],[8,1,8,22],[8,25,8,28],[9,23,10,40],[9,1,10,22],[29,23,29,40],[18,24,19,34],[12,23,13,23],[18,23,19,23],[12,24,13,34],[26,23,27,23],[30,35,30,40],[30,29,30,34],[31,30,31,31],[31,32,31,35],[31,23,31,29],[11,1,11,22],[29,1,30,22],[20,1,27,22],[28,1,28,22],[14,36,15,40],[14,23,15,23],[14,24,15,34],[26,24,27,40],[16,23,17,23],[16,24,17,34],[16,36,17,40],[24,23,25,23],[24,24,25,40],[22,23,23,23],[22,24,23,40],[20,23,21,23],[12,1,19,22],[62,29,62,34],[63,29,63,34],[64,29,64,34],[76,29,76,34],[77,29,77,34],[77,35,77,40],[76,35,76,40],[75,35,75,40],[74,35,74,40],[73,35,73,40],[72,35,72,40],[71,35,71,40],[70,35,70,40],[69,35,69,40],[68,35,68,40],[67,35,67,40],[66,35,66,40],[65,35,65,40],[64,35,64,40],[65,29,65,34],[66,29,66,34],[67,29,67,34],[68,29,68,34],[76,23,76,28],[77,23,77,28],[30,23,30,28],[38,23,38,28],[39,23,39,28],[40,23,40,28],[41,23,41,28],[42,23,42,28],[43,23,43,28],[74,23,74,28],[75,23,75,28],[44,26,44,28],[45,26,45,28],[46,26,46,28],[47,26,47,28],[48,26,48,28],[49,26,49,28],[34,26,34,27],[32,23,32,28],[53,23,53,28],[34,23,34,25],[35,23,35,28],[36,23,36,28],[75,29,75,34],[58,29,58,34],[54,23,54,28],[54,35,54,40],[65,23,65,28],[66,23,66,28],[67,23,67,28],[70,23,70,28],[71,23,71,28],[59,29,59,34],[60,29,60,34],[61,29,61,34],[59,35,59,40],[58,35,58,40],[54,29,54,34],[55,29,55,34],[56,29,56,34],[69,29,69,34],[63,35,63,40],[62,35,62,40],[61,35,61,40],[60,35,60,40],[57,35,57,40],[74,29,74,34],[56,35,56,40],[81,1,81,23],[68,3,69,22],[55,23,55,28],[56,23,56,28],[57,23,57,28],[57,29,57,34],[62,3,65,22],[70,1,71,22],[72,1,77,22],[58,23,58,28],[59,23,59,28],[60,23,60,28],[61,23,61,28],[62,23,62,28],[63,23,63,28],[64,23,64,28],[72,23,72,28],[73,23,73,28],[70,29,70,34],[71,29,71,34],[72,29,72,34],[73,29,73,34],[69,23,69,28],[55,35,55,40],[35,29,35,34],[36,29,36,34],[37,29,37,34],[37,35,37,40],[36,35,36,40],[35,35,35,40],[53,35,53,40],[44,32,44,34],[53,29,53,34],[41,29,41,34],[42,29,42,34],[43,29,43,34],[46,38,46,40],[38,29,38,34],[39,29,39,34],[40,29,40,34],[43,35,43,40],[42,35,42,40],[41,35,41,40],[40,35,40,40],[39,35,39,40],[38,35,38,40],[54,3,57,22],[44,3,49,22],[31,1,31,22],[54,1,69,2],[40,3,43,22],[66,3,67,22],[34,1,34,22],[53,3,53,22],[50,3,52,22],[58,3,61,22],[35,1,53,2],[35,3,39,22],[32,1,33,22],[8,23,8,24],[8,29,8,40],[46,32,46,34],[47,32,47,34],[48,32,48,34],[49,32,49,34],[32,29,32,34],[34,32,34,33],[34,29,34,31],[28,23,28,40],[12,35,19,35],[44,38,44,40],[45,38,45,40],[47,38,47,40],[48,38,48,40],[49,38,49,40],[34,38,34,39],[34,35,34,37],[45,32,45,34],[37,23,37,28],[11,23,11,34],[18,36,19,40],[12,36,13,40],[11,36,11,40],[32,35,32,40],[20,24,21,40],[50,37,50,40],[51,37,51,40],[52,37,52,40],[50,31,50,34],[51,31,51,34],[52,31,52,34],[50,25,50,28],[51,25,51,28],[52,25,52,28],[33,23,33,28],[33,29,33,34],[33,35,33,40]]}
[null,null,null,null,null,null,null,null,null,null,null,null,null,null,null,null,null,null,null,null,null,null,null,null,null,null,null,null,null,null,null,null,null,null,null,0]
[null,null,null,null,null,null,null,null,null,null,null,null,null,null,null,null,null,null,null,null,null,null,null,null,null,null,null,null,null,null,null,null,null,null,null,null,null,null,null,null,null,null,null,null,null,null,null,null,null,null,null,null,null,null,null,null,null,null,null,null,null,null,null,null,null,null,null,null,null,null,null,null,null,null,null,null,null,null,null,null,null,null,null,null,null,null,null,null,null,null,null,null,null,null,null,null,null,null,null,null,null,null,null,null,null,null,null,null,null,null,null,null,null,null,null,null,null,null,null,null,null,null,null,null,null,null,null,null,null,null,null,null,null,null,null,null,null,null,null,null,null,null,null,null,null,null,null,null,null,null,null,null,0]
[null,"高　圧　ガ　ス　設　備　試　験　申　請　書"]
[null,null,null,null,null,null,null,null,null,null,null,null,null,null,null,null,null,null,null,null,null,null,null,null,null,null,null,null,null,null,null,null,null,null,null,"前回申請時の整理番号"]
[null,null,null,null,null,null,null,null,null,null,null,null,null,null,null,null,null,null,null,null,null,null,null,null,null,null,null,null,null,null,null,null,null,null,null,"接合数又は構成機器数の\nいずれか小さい数"]
[null,null,null,null,null,null,null,null,null,null,null,null,null,null,null,null,null,null,null,null,null,null,null,null,null,null,null,null,null,null,null,null,null,null,null,"管類の場合のユニット数"]
[]
[]
[null,"申請年月日",null,null,null,null,null,null,null,null,null,null,null,null,null,null,null,null,null,null,null,null,null,"",null,"代表者氏名",null,null,null,""]
[null,"試験を受けようとする者の名称\n(事業所の名称を含む）",null,null,null,null,null,null,null,null,null,null,null,null,null,null,null,null,null,null,null,null,null,""]
[]
[null,"事業所所在地",null,null,null,null,null,null,null,null,null,null,null,null,null,null,null,null,null,null,null,null,null,"",null,null,null,null,null,null,null,null,null,null,null,"（電話番号）"]
[null,"製造者の名称",null,null,null,null,null,null,null,null,null,null,null,null,null,null,null,null,null,null,null,null,null,"","",null,null,null,null,null,null,null,null,null,null,"（国名）"]
[]
[null,null,null,null,null,null,null,null,null,null,null,null,null,null,null,null,null,null,null,null,null,null,null,"",""]
[null,null,null,null,null,null,null,null,null,null,null,null,null,null,null,null,null,null,null,null,null,null,null,null,null,null,null,null,null,null,null,null,null,null,null,null,null,null,null,null,null,null,null,null,null,null,"採番方式"]
[null,null,null,null,null,null,null,null,null,null,null,null,null,null,null,null,null,null,null,null,null,null,null,"","",null,null,null,null,null,null,null,null,null,null,null,null,null,null,null,null,null,null,null,null,null,null,null,null,null,null,null,null,null,null,null,null,null,null,null,null,null,null,null,null,null,null,null,"採番方式コード"]
[]
[null,null,null,null,null,null,null,null,null,null,null,null,null,null,null,null,null,null,null,null,null,null,null,"",""]
[]
[null,"受験場所",null,null,null,null,null,null,null,null,null,null,null,null,null,null,null,null,null,null,null,null,null,"",""]
[]
[null,null,null,null,null,null,null,null,null,null,null,null,null,null,null,null,null,null,null,null,null,null,null,"",""]
[]
[null,null,null,null,null,null,null,null,null,null,null,null,null,null,null,null,null,null,null,null,null,null,null,"",""]
[]
[null,null,null,null,null,null,null,null,null,null,null,null,null,null,null,null,null,null,null,null,null,null,null,"",""]
[]
[null,"試験希望年月日",null,null,null,null,null,null,null,null,null,null,null,null,null,null,null,null,null,null,null,null,null,""]
[null,"機器の種類",null,null,null,null,null,null,null,null,null,null,null,null,null,null,null,null,null,null,null,null,null,""]
[null,null,null,null,null,null,null,null,null,null,null,null,null,null,null,null,null,null,null,null,null,null,null,"",null,null,null,null,null,"",null,null,null,null,null,""]
[null,"複合機器品名・型式",null,null,null,null,null,null,null,null,null,null,null,null,null,null,null,null,null,null,null,null,null,"",null,null,null,null,null,null,"複合機器番号",null,"",null,null,null,"複合基数",null,null,null,"基"]
[null,"品名・型式",null,null,null,null,null,null,null,null,null,null,null,null,null,null,null,null,null,null,null,null,null,"",null,null,null,null,null,"",null,null,null,null,null,""]
[null,null,null,null,null,null,null,null,null,null,null,null,null,null,null,null,null,null,null,null,null,null,null,"",null,null,null,null,null,"",null,null,null,null,null,""]
[null,"機 器 番 号 ( 基 数 )",null,null,null,null,null,null,null,null,null,null,null,null,null,null,null,null,null,null,null,null,null,"",null,null,"",null,"基","",null,null,null,null,"基","",null,null,null,null,"基"]
[null,"機器仕様",null,"設 計 圧 力",null,null,null,null,null,null,null,null,null,null,null,null,null,null,null,null,null,null,null,"",null,null,null,null,null,"",null,null,null,null,null,""]
[null,null,null,null,null,null,null,null,null,null,null,null,null,null,null,null,null,null,null,null,null,null,null,"■ MPa",null,null,null,null,null,"",null,null,null,null,null,""]
[null,null,null,null,null,null,null,null,null,null,null,null,null,null,null,null,null,null,null,null,null,null,null,"",null,null,null,null,null,"",null,null,null,null,null,""]
[null,null,null,null,null,null,null,null,null,null,null,null,null,null,null,null,null,null,null,null,null,null,null,"",null,null,null,null,null,"",null,null,null,null,null,""]
[null,null,null,null,null,null,null,null,null,null,null,null,null,null,null,null,null,null,null,null,null,null,null,"",null,null,null,null,null,"",null,null,null,null,null,""]
[null,null,null,"設 計 温 度",null,null,null,null,null,null,null,null,null,null,null,null,null,null,null,null,null,null,null,"■ ℃",null,null,null,null,null,"",null,null,null,null,null,""]
[null,null,null,null,null,null,null,null,null,null,null,null,null,null,null,null,null,null,null,null,null,null,null,"",null,null,null,null,null,"",null,null,null,null,null,""]
[null,null,null,null,null,null,null,null,null,null,null,null,null,null,null,null,null,null,null,null,null,null,null,"",null,null,null,null,null,"",null,null,null,null,null,""]
[null,null,null,null,null,null,null,null,null,null,null,null,null,null,null,null,null,null,null,null,null,null,null,"",null,null,null,null,null,"",null,null,null,null,null,""]
[null,null,null,"規  定  最  小  肉  厚",null,null,null,null,null,null,null,null,null,null,null,null,null,null,null,null,null,null,null,"","","mm",null,null,null,"","","mm",null,null,null,"","","mm"]
[null,null,null,null,null,null,null,null,null,null,null,null,null,null,null,null,null,null,null,null,null,null,null,"","","mm",null,null,null,"","","mm",null,null,null,"","","mm"]
[null,null,null,null,null,null,null,null,null,null,null,null,null,null,null,null,null,null,null,null,null,null,null,"","","mm",null,null,null,"","","mm",null,null,null,"","","mm"]
[null,null,null,null,null,null,null,null,null,null,null,null,null,null,null,null,null,null,null,null,null,null,null,"","","mm",null,null,null,"","","mm",null,null,null,"","","mm"]
[null,null,null,null,null,null,null,null,null,null,null,null,null,null,null,null,null,null,null,null,null,null,null,"","","mm",null,null,null,"","","mm",null,null,null,"","","mm"]
[null,null,null,null,null,null,null,null,null,null,null,null,null,null,null,null,null,null,null,null,null,null,null,"","","mm",null,null,null,"","","mm",null,null,null,"","","mm"]
[null,null,null,"機器の処理容積等",null,null,null,null,null,null,null,null,null,null,null,null,null,null,null,null,null,null,null,"","","",null,null,null,"","",null,null,null,null,"",""]
[null,null,null,null,null,null,null,null,null,null,null,null,null,null,null,null,null,null,null,null,null,null,null,"","","",null,null,null,"","",null,null,null,null,"",""]
[null,null,null,null,null,null,null,null,null,null,null,null,null,null,null,null,null,null,null,null,null,null,null,"","","",null,null,null,"","",null,null,null,null,"",""]
[null,null,null,"手数料算定対象",null,null,null,null,null,null,null,null,null,null,null,null,null,null,null,null,null,null,null,"対象",null,null,null,null,null,"対象",null,null,null,null,null,"対象"]
[null,"試験の種類",null,"主 要 部 材 質",null,null,null,null,null,null,null,null,null,null,null,null,null,null,null,null,null,null,null,"",null,null,null,null,null,"",null,null,null,null,null,""]
[null,null,null,null,null,null,null,null,null,null,null,null,null,null,null,null,null,null,null,null,null,null,null,"",null,null,null,null,null,"",null,null,null,null,null,""]
[null,null,null,null,null,null,null,null,null,null,null,null,null,null,null,null,null,null,null,null,null,null,null,"",null,null,null,null,null,"",null,null,null,null,null,""]
[null,null,null,null,null,null,null,null,null,null,null,null,null,null,null,null,null,null,null,null,null,null,null,"",null,null,null,null,null,"",null,null,null,null,null,""]
[null,null,null,"耐 圧 試 験 ",null,null,null,null,null,null,null,null,null,null,null,null,null,null,null,null,null,null,null,"■ MPa",null,null,null,null,null,"",null,null,null,null,null,""]
[null,null,null,null,null,null,null,null,null,null,null,null,null,null,null,null,null,null,null,null,null,null,null,"",null,null,null,null,null,"",null,null,null,null,null,""]
[null,null,null,null,null,null,null,null,null,null,null,null,null,null,null,null,null,null,null,null,null,null,null,"",null,null,null,null,null,"",null,null,null,null,null,""]
[null,null,null,null,null,null,null,null,null,null,null,null,null,null,null,null,null,null,null,null,null,null,null,"",null,null,null,null,null,"",null,null,null,null,null,""]
[null,null,null,"気 密 試 験 ",null,null,null,null,null,null,null,null,null,null,null,null,null,null,null,null,null,null,null,"■ MPa",null,null,null,null,null,"",null,null,null,null,null,""]
[null,null,null,null,null,null,null,null,null,null,null,null,null,null,null,null,null,null,null,null,null,null,null,"",null,null,null,null,null,"",null,null,null,null,null,""]
[null,null,null,null,null,null,null,null,null,null,null,null,null,null,null,null,null,null,null,null,null,null,null,"",null,null,null,null,null,"",null,null,null,null,null,""]
[null,null,null,null,null,null,null,null,null,null,null,null,null,null,null,null,null,null,null,null,null,null,null,"",null,null,null,null,null,"",null,null,null,null,null,""]
[null,null,null,"肉 厚 の確認方法",null,null,null,null,null,null,null,null,null,null,null,null,null,null,null,null,null,null,null,"強度計算",null,null,null,null,null,"",null,null,null,null,null,""]
[null,null,null,null,null,null,null,null,null,null,null,null,null,null,null,null,null,null,null,null,null,null,null,"",null,null,null,null,null,"",null,null,null,null,null,""]
[null,null,null,"非 破 壊 検 査",null,null,null,null,null,null,null,null,null,null,null,null,null,null,null,null,null,null,null,"－",null,null,null,null,null,"",null,null,null,null,null,""]
[null,null,null,null,null,null,null,null,null,null,null,null,null,null,null,null,null,null,null,null,null,null,null,"",null,null,null,null,null,"",null,null,null,null,null,""]
[null,"高圧ガスの種類(名称）",null,null,null,null,null,null,null,null,null,null,null,null,null,null,null,null,null,null,null,null,null,"",null,null,null,null,null,"",null,null,null,null,null,""]
[null,null,null,null,null,null,null,null,null,null,null,null,null,null,null,null,null,null,null,null,null,null,null,"",null,null,null,null,null,"",null,null,null,null,null,""]
[null,"備　　　　　　　　　　　　　　考",null,null,null,null,null,null,null,null,null,null,null,null,null,null,null,null,null,null,null,null,null,"",null,null,null,null,null,"",null,null,null,null,null,""]
[null,null,null,null,null,null,null,null,null,null,null,null,null,null,null,null,null,null,null,null,null,null,null,"",null,null,null,null,null,"",null,null,null,null,null,""]
[null,null,null,null,null,null,null,null,null,null,null,null,null,null,null,null,null,null,null,null,null,null,null,"",null,null,null,null,null,"",null,null,null,null,null,""]
[null,null,null,null,null,null,null,null,null,null,null,null,null,null,null,null,null,null,null,null,null,null,null,"",null,null,null,null,null,"",null,null,null,null,null,""]
[null,null,null,null,null,null,null,null,null,null,null,null,null,null,null,null,null,null,null,null,null,null,null,"",null,null,null,null,null,"",null,null,null,null,null,""]
[null,null,null,null,null,null,null,null,null,null,null,null,null,null,null,null,null,null,null,null,null,null,null,"",null,null,null,null,null,"",null,null,null,null,null,""]
[]
[]
[]
[null,"高圧ガス保安協会殿"]

{"sheet":"機器番号","index":2,"n_rows":207,"n_cols":13,"rows_kept":207,"cut":false,"hidden":false,"merged":[]}
[]
[null,"※｢機器番号｣､｢複合機器番号｣､｢成績書番号｣を適宜入力してください。"]
[]
[]
[null,null,null,null,null,null,null,null,null,"※備考欄に記載する本機器に使用する認定品の認定試験者"]
[null,null,null,null,null,null,null,null,null,"　 試験等成績書の番号を記入してください。"]
[null,"№","機器番号１","機器番号２","機器番号３",null,"№","複合機器番号",null,"№","成績書番号１","成績書番号２","成績書番号３"]
[null,1,"","","",null,1,"",null,1,"","",""]
[null,2,"","","",null,2,"",null,2,"","",""]
[null,3,"","","",null,3,"",null,3,"","",""]
[null,4,"","","",null,4,"",null,4,"","",""]
[null,5,"","","",null,5,"",null,5,"","",""]
[null,6,"","","",null,6,"",null,6,"","",""]
[null,7,"","","",null,7,"",null,7,"","",""]
[null,8,"","","",null,8,"",null,8,"","",""]
[null,9,"","","",null,9,"",null,9,"","",""]
[null,10,"","","",null,10,"",null,10,"","",""]
[null,11,"","","",null,11,"",null,11,"","",""]
[null,12,"","","",null,12,"",null,12,"","",""]
[null,13,"","","",null,13,"",null,13,"","",""]
[null,14,"","","",null,14,"",null,14,"","",""]
[null,15,"","","",null,15,"",null,15,"","",""]
[null,16,"","","",null,16,"",null,16,"","",""]
[null,17,"","","",null,17,"",null,17,"","",""]
[null,18,"","","",null,18,"",null,18,"","",""]
[null,19,"","","",null,19,"",null,19,"","",""]
[null,20,"","","",null,20,"",null,20,"","",""]
[null,21,"","","",null,21,"",null,21,"","",""]
[null,22,"","","",null,22,"",null,22,"","",""]
[null,23,"","","",null,23,"",null,23,"","",""]
[null,24,"","","",null,24,"",null,24,"","",""]
[null,25,"","","",null,25,"",null,25,"","",""]
[null,26,"","","",null,26,"",null,26,"","",""]
[null,27,"","","",null,27,"",null,27,"","",""]
[null,28,"","","",null,28,"",null,28,"","",""]
[null,29,"","","",null,29,"",null,29,"","",""]
[null,30,"","","",null,30,"",null,30,"","",""]
[null,31,"","","",null,31,"",null,31,"","",""]
[null,32,"","","",null,32,"",null,32,"","",""]
[null,33,"","","",null,33,"",null,33,"","",""]
[null,34,"","","",null,34,"",null,34,"","",""]
[null,35,"","","",null,35,"",null,35,"","",""]
[null,36,"","","",null,36,"",null,36,"","",""]
[null,37,"","","",null,37,"",null,37,"","",""]
[null,38,"","","",null,38,"",null,38,"","",""]
[null,39,"","","",null,39,"",null,39,"","",""]
[null,40,"","","",null,40,"",null,40,"","",""]
[null,41,"","","",null,41,"",null,41,"","",""]
[null,42,"","","",null,42,"",null,42,"","",""]
[null,43,"","","",null,43,"",null,43,"","",""]
[null,44,"","","",null,44,"",null,44,"","",""]
[null,45,"","","",null,45,"",null,45,"","",""]
[null,46,"","","",null,46,"",null,46,"","",""]
[null,47,"","","",null,47,"",null,47,"","",""]
[null,48,"","","",null,48,"",null,48,"","",""]
[null,49,"","","",null,49,"",null,49,"","",""]
[null,50,"","","",null,50,"",null,50,"","",""]
[null,51,"","","",null,51,"",null,51,"","",""]
[null,52,"","","",null,52,"",null,52,"","",""]
[null,53,"","","",null,53,"",null,53,"","",""]
[null,54,"","","",null,54,"",null,54,"","",""]
[null,55,"","","",null,55,"",null,55,"","",""]
[null,56,"","","",null,56,"",null,56,"","",""]
[null,57,"","","",null,57,"",null,57,"","",""]
[null,58,"","","",null,58,"",null,58,"","",""]
[null,59,"","","",null,59,"",null,59,"","",""]
[null,60,"","","",null,60,"",null,60,"","",""]
[null,61,"","","",null,61,"",null,61,"","",""]
[null,62,"","","",null,62,"",null,62,"","",""]
[null,63,"","","",null,63,"",null,63,"","",""]
[null,64,"","","",null,64,"",null,64,"","",""]
[null,65,"","","",null,65,"",null,65,"","",""]
[null,66,"","","",null,66,"",null,66,"","",""]
[null,67,"","","",null,67,"",null,67,"","",""]
[null,68,"","","",null,68,"",null,68,"","",""]
[null,69,"","","",null,69,"",null,69,"","",""]
[null,70,"","","",null,70,"",null,70,"","",""]
[null,71,"","","",null,71,"",null,71,"","",""]
[null,72,"","","",null,72,"",null,72,"","",""]
[null,73,"","","",null,73,"",null,73,"","",""]
[null,74,"","","",null,74,"",null,74,"","",""]
[null,75,"","","",null,75,"",null,75,"","",""]
[null,76,"","","",null,76,"",null,76,"","",""]
[null,77,"","","",null,77,"",null,77,"","",""]
[null,78,"","","",null,78,"",null,78,"","",""]
[null,79,"","","",null,79,"",null,79,"","",""]
[null,80,"","","",null,80,"",null,80,"","",""]
[null,81,"","","",null,81,"",null,81,"","",""]
[null,82,"","","",null,82,"",null,82,"","",""]
[null,83,"","","",null,83,"",null,83,"","",""]
[null,84,"","","",null,84,"",null,84,"","",""]
[null,85,"","","",null,85,"",null,85,"","",""]
[null,86,"","","",null,86,"",null,86,"","",""]
[null,87,"","","",null,87,"",null,87,"","",""]
[null,88,"","","",null,88,"",null,88,"","",""]
[null,89,"","","",null,89,"",null,89,"","",""]
[null,90,"","","",null,90,"",null,90,"","",""]
[null,91,"","","",null,91,"",null,91,"","",""]
[null,92,"","","",null,92,"",null,92,"","",""]
[null,93,"","","",null,93,"",null,93,"","",""]
[null,94,"","","",null,94,"",null,94,"","",""]
[null,95,"","","",null,95,"",null,95,"","",""]
[null,96,"","","",null,96,"",null,96,"","",""]
[null,97,"","","",null,97,"",null,97,"","",""]
[null,98,"","","",null,98,"",null,98,"","",""]
[null,99,"","","",null,99,"",null,99,"","",""]
[null,100,"","","",null,100,"",null,100,"","",""]
[null,101,"","","",null,101,"",null,101,"","",""]
[null,102,"","","",null,102,"",null,102,"","",""]
[null,103,"","","",null,103,"",null,103,"","",""]
[null,104,"","","",null,104,"",null,104,"","",""]
[null,105,"","","",null,105,"",null,105,"","",""]
[null,106,"","","",null,106,"",null,106,"","",""]
[null,107,"","","",null,107,"",null,107,"","",""]
[null,108,"","","",null,108,"",null,108,"","",""]
[null,109,"","","",null,109,"",null,109,"","",""]
[null,110,"","","",null,110,"",null,110,"","",""]
[null,111,"","","",null,111,"",null,111,"","",""]
[null,112,"","","",null,112,"",null,112,"","",""]
[null,113,"","","",null,113,"",null,113,"","",""]
[null,114,"","","",null,114,"",null,114,"","",""]
[null,115,"","","",null,115,"",null,115,"","",""]
[null,116,"","","",null,116,"",null,116,"","",""]
[null,117,"","","",null,117,"",null,117,"","",""]
[null,118,"","","",null,118,"",null,118,"","",""]
[null,119,"","","",null,119,"",null,119,"","",""]
[null,120,"","","",null,120,"",null,120,"","",""]
[null,121,"","","",null,121,"",null,121,"","",""]
[null,122,"","","",null,122,"",null,122,"","",""]
[null,123,"","","",null,123,"",null,123,"","",""]
[null,124,"","","",null,124,"",null,124,"","",""]
[null,125,"","","",null,125,"",null,125,"","",""]
[null,126,"","","",null,126,"",null,126,"","",""]
[null,127,"","","",null,127,"",null,127,"","",""]
[null,128,"","","",null,128,"",null,128,"","",""]
[null,129,"","","",null,129,"",null,129,"","",""]
[null,130,"","","",null,130,"",null,130,"","",""]
[null,131,"","","",null,131,"",null,131,"","",""]
[null,132,"","","",null,132,"",null,132,"","",""]
[null,133,"","","",null,133,"",null,133,"","",""]
[null,134,"","","",null,134,"",null,134,"","",""]
[null,135,"","","",null,135,"",null,135,"","",""]
[null,136,"","","",null,136,"",null,136,"","",""]
[null,137,"","","",null,137,"",null,137,"","",""]
[null,138,"","","",null,138,"",null,138,"","",""]
[null,139,"","","",null,139,"",null,139,"","",""]
[null,140,"","","",null,140,"",null,140,"","",""]
[null,141,"","","",null,141,"",null,141,"","",""]
[null,142,"","","",null,142,"",null,142,"","",""]
[null,143,"","","",null,143,"",null,143,"","",""]
[null,144,"","","",null,144,"",null,144,"","",""]
[null,145,"","","",null,145,"",null,145,"","",""]
[null,146,"","","",null,146,"",null,146,"","",""]
[null,147,"","","",null,147,"",null,147,"","",""]
[null,148,"","","",null,148,"",null,148,"","",""]
[null,149,"","","",null,149,"",null,149,"","",""]
[null,150,"","","",null,150,"",null,150,"","",""]
[null,151,"","","",null,151,"",null,151,"","",""]
[null,152,"","","",null,152,"",null,152,"","",""]
[null,153,"","","",null,153,"",null,153,"","",""]
[null,154,"","","",null,154,"",null,154,"","",""]
[null,155,"","","",null,155,"",null,155,"","",""]
[null,156,"","","",null,156,"",null,156,"","",""]
[null,157,"","","",null,157,"",null,157,"","",""]
[null,158,"","","",null,158,"",null,158,"","",""]
[null,159,"","","",null,159,"",null,159,"","",""]
[null,160,"","","",null,160,"",null,160,"","",""]
[null,161,"","","",null,161,"",null,161,"","",""]
[null,162,"","","",null,162,"",null,162,"","",""]
[null,163,"","","",null,163,"",null,163,"","",""]
[null,164,"","","",null,164,"",null,164,"","",""]
[null,165,"","","",null,165,"",null,165,"","",""]
[null,166,"","","",null,166,"",null,166,"","",""]
[null,167,"","","",null,167,"",null,167,"","",""]
[null,168,"","","",null,168,"",null,168,"","",""]
[null,169,"","","",null,169,"",null,169,"","",""]
[null,170,"","","",null,170,"",null,170,"","",""]
[null,171,"","","",null,171,"",null,171,"","",""]
[null,172,"","","",null,172,"",null,172,"","",""]
[null,173,"","","",null,173,"",null,173,"","",""]
[null,174,"","","",null,174,"",null,174,"","",""]
[null,175,"","","",null,175,"",null,175,"","",""]
[null,176,"","","",null,176,"",null,176,"","",""]
[null,177,"","","",null,177,"",null,177,"","",""]
[null,178,"","","",null,178,"",null,178,"","",""]
[null,179,"","","",null,179,"",null,179,"","",""]
[null,180,"","","",null,180,"",null,180,"","",""]
[null,181,"","","",null,181,"",null,181,"","",""]
[null,182,"","","",null,182,"",null,182,"","",""]
[null,183,"","","",null,183,"",null,183,"","",""]
[null,184,"","","",null,184,"",null,184,"","",""]
[null,185,"","","",null,185,"",null,185,"","",""]
[null,186,"","","",null,186,"",null,186,"","",""]
[null,187,"","","",null,187,"",null,187,"","",""]
[null,188,"","","",null,188,"",null,188,"","",""]
[null,189,"","","",null,189,"",null,189,"","",""]
[null,190,"","","",null,190,"",null,190,"","",""]
[null,191,"","","",null,191,"",null,191,"","",""]
[null,192,"","","",null,192,"",null,192,"","",""]
[null,193,"","","",null,193,"",null,193,"","",""]
[null,194,"","","",null,194,"",null,194,"","",""]
[null,195,"","","",null,195,"",null,195,"","",""]
[null,196,"","","",null,196,"",null,196,"","",""]
[null,197,"","","",null,197,"",null,197,"","",""]
[null,198,"","","",null,198,"",null,198,"","",""]
[null,199,"","","",null,199,"",null,199,"","",""]
[null,200,"","","",null,200,"",null,200,"","",""]

{"sheet":"複合機器検査手数料","index":3,"n_rows":42,"n_cols":11,"rows_kept":42,"cut":false,"hidden":true,"merged":[[40,1,40,3],[3,1,3,2],[0,1,1,10],[5,10,6,10],[39,7,39,8],[38,7,38,8],[38,9,38,10],[37,6,37,10],[5,1,6,1],[5,6,6,6],[5,2,5,5],[5,7,6,7],[5,8,6,8],[5,9,6,9],[6,4,6,5],[38,4,38,5],[37,4,37,5],[41,7,41,8],[39,9,39,10],[40,9,40,10],[41,9,41,10],[41,4,41,5],[40,4,40,5],[39,4,39,5],[40,7,40,8]]}
[null,"複　合　機　器　検　査　手　数　料"]
[]
[]
[null,"製造番号："]
[]
[null,"№","機器の種類",null,null,null,"単価","台数又は\nセット数","構成\n機器数","金額","大臣認定品"]
[null,null,"記号・種類名称","名称(処理容積等)","処理容積等"]
[null,1,null,null,null,null,null,null,null,{"$f":"IF($K8=\"認定品\",\"\",IF($H8=\"\",\"\",$H8*$G8))","v":""}]
[null,2,null,null,null,null,null,null,null,{"$f":"IF($K9=\"認定品\",\"\",IF($H9=\"\",\"\",$H9*$G9))","v":""}]
[null,3,null,null,null,null,null,null,null,""]
[null,4,null,null,null,null,null,null,null,""]
[null,5,null,null,null,null,null,null,null,""]
[null,6,null,null,null,null,null,null,null,""]
[null,7,null,null,null,null,null,null,null,""]
[null,8,null,null,null,null,null,null,null,""]
[null,9,null,null,null,null,null,null,null,""]
[null,10,null,null,null,null,null,null,null,""]
[null,11,null,null,null,null,null,null,null,""]
[null,12,null,null,null,null,null,null,null,""]
[null,13,null,null,null,null,null,null,null,""]
[null,14,null,null,null,null,null,null,null,""]
[null,15,null,null,null,null,null,null,null,""]
[null,16,null,null,null,null,null,null,null,""]
[null,17,null,null,null,null,null,null,null,""]
[null,18,null,null,null,null,null,null,null,""]
[null,19,null,null,null,null,null,null,null,""]
[null,20,null,null,null,null,null,null,null,""]
[null,21,null,null,null,null,null,null,null,""]
[null,22,null,null,null,null,null,null,null,""]
[null,23,null,null,null,null,null,null,null,""]
[null,24,null,null,null,null,null,null,null,""]
[null,25,null,null,null,null,null,null,null,""]
[null,26,null,null,null,null,null,null,null,""]
[null,27,null,null,null,null,null,null,null,""]
[null,28,null,null,null,null,null,null,null,""]
[null,29,null,null,null,null,null,null,null,""]
[null,30,null,null,null,null,null,null,null,""]
[null,null,null,null,"小計金額①",null,{"$f":"SUM(J8:J37)","v":0}]
[null,null,null,null,null,null,"単価（円）","基数",null,"金額"]
[null,null,null,null,"構成機器②",null,1040,{"$f":"SUM(I8:I37)","v":0},null,{"$f":"G40*H40","v":0}]
[null,"　　　　※｢接合の箇所数｣の初期値は｢構成機器｣と同じ数値が表示されます。\n　　　　　 必要であれば変更してください。",null,null,"接合の個所数③",null,1040,0,null,{"$f":"G41*H41","v":0}]
[null,null,null,null,"合計((①+②または③)×④）",null,"ユニット数計④",0,null,{"$f":"IF($H$40=$H$41,($G$38+$J$40)*$H$42,IF($H$40<$H$41,($G$38+$J40)*$H$42,($G$38+$J$41)*$H$42))","v":0}]

{"sheet":"高圧ガス設備試験申請書内容","index":4,"n_rows":30,"n_cols":147,"rows_kept":30,"cut":false,"hidden":true,"merged":[[13,23,14,28],[11,1,12,22],[5,1,6,22],[15,1,15,22],[16,23,16,28],[16,29,16,34],[16,35,16,40],[15,23,15,28],[4,23,4,24],[4,25,4,29],[5,23,6,34],[33,1,33,23],[7,1,8,22],[7,23,8,34],[10,1,10,22],[29,1,29,22],[29,23,29,28],[29,29,29,34],[4,30,4,34],[9,1,9,64],[10,35,10,40],[11,35,12,40],[16,1,16,22],[22,53,22,58],[23,53,23,58],[22,35,22,40],[26,47,26,52],[25,47,25,52],[4,1,4,22],[17,1,18,22],[17,23,18,28],[17,29,18,34],[23,1,27,2],[23,3,23,22],[23,23,23,28],[23,29,23,34],[23,35,23,40],[24,35,24,40],[26,41,26,46],[23,41,23,46],[24,41,24,46],[29,35,29,40],[28,1,28,22],[28,23,28,28],[28,29,28,34],[28,35,28,40],[27,3,27,22],[25,29,25,34],[25,35,25,40],[29,41,29,46],[27,41,27,46],[26,3,26,22],[26,23,26,28],[25,3,25,22],[25,23,25,28],[26,29,26,34],[10,41,10,46],[11,41,12,46],[16,41,16,46],[17,41,18,46],[20,41,20,46],[21,41,21,46],[28,41,28,46],[25,41,25,46],[24,3,24,22],[24,23,24,28],[24,29,24,34],[22,41,22,46],[19,23,19,28],[13,29,14,34],[13,35,14,40],[26,35,26,40],[27,23,27,28],[27,29,27,34],[27,35,27,40],[11,23,12,28],[10,23,10,28],[10,29,10,34],[17,35,18,40],[13,1,14,22],[28,47,28,52],[29,47,29,52],[19,47,19,52],[20,47,20,52],[21,47,21,52],[10,47,10,52],[27,47,27,52],[28,53,28,58],[28,59,28,64],[29,53,29,58],[29,59,29,64],[27,53,27,58],[27,59,27,64],[21,53,21,58],[16,59,16,64],[10,53,10,58],[10,59,10,64],[11,53,12,58],[11,59,12,64],[20,59,20,64],[19,59,19,64],[21,59,21,64],[17,47,18,52],[17,53,18,58],[2,1,2,22],[11,29,12,34],[15,29,15,34],[15,35,15,40],[15,41,15,46],[15,47,15,52],[15,53,15,58],[15,59,15,64],[25,59,25,64],[16,53,16,58],[19,53,19,58],[20,53,20,58],[11,47,12,52],[16,47,16,52],[13,41,14,46],[13,47,14,52],[13,53,14,58],[13,59,14,64],[24,59,24,64],[23,59,23,64],[22,59,22,64],[19,1,22,2],[19,3,19,22],[19,29,19,34],[20,3,20,22],[20,23,20,28],[20,29,20,34],[20,35,20,40],[21,29,21,34],[21,35,21,40],[21,3,21,22],[21,23,21,28],[22,3,22,22],[22,23,22,28],[22,29,22,34],[17,59,18,64],[24,53,24,58],[25,53,25,58],[26,53,26,58],[22,47,22,52],[23,47,23,52],[24,47,24,52],[26,59,26,64],[19,35,19,40],[19,41,19,46]]}
[]
[null,null,null,null,null,null,null,null,null,null,null,null,null,null,null,null,null,null,null,null,null,null,null,null,null,null,null,null,null,null,null,null,null,null,null,null,null,null,null,null,null,null,null,null,null,null,null,null,null,null,null,null,null,null,null,null,null,null,null,null,null,null,null,null,null,null,null,null,null,null,null,null,null,null,null,null,null,null,null,null,null,null,null,null,null,null,null,null,null,null,null,null,null,null,null,null,null,null,null,null,null,null,null,null,null,null,null,null,null,null,null,null,null,null,null,null,null,null,null,null,null,null,null,null,null,null,null,null,null,null,null,null,null,null,null,null,null,null,null,null,null,null,null,null,null,null,0]
[null,"高圧ガス設備試験申請書内容",null,null,null,null,null,null,null,null,null,null,null,null,null,null,null,null,null,null,null,null,null,"（　　/　　)"]
[]
[null,"※整理番号",null,null,null,null,null,null,null,null,null,null,null,null,null,null,null,null,null,null,null,null,null,null,null,"※受理年月日"]
[null,"試験を受けようとする者の名称\n　　(事業所の名称を含む）"]
[]
[null,"事業所所在地(電話番号）",null,null,null,null,null,null,null,null,null,null,null,null,null,null,null,null,null,null,null,null,null,"　　　　　　　　　　　　　　　　　　　　　　　　　　　　　　　　　　　　　　　　　　　　　　　　　　　　　　　　　　　　　　　　　　　　　　　　　　　　　　　　　　　　　　（　　　　　　　　　　　　　　　　　　　　　　　　　　　　）"]
[]
[]
[null,"構成機器番号"]
[null,"製造者の名称（国名)"]
[]
[null,"受験場所"]
[]
[null,"試験希望年月日"]
[null,"機器の種類"]
[null,"品名・型式\n[機 器 番 号 ( 基 数 )]"]
[]
[null,"機器仕様",null,"設 計 圧 力",null,null,null,null,null,null,null,null,null,null,null,null,null,null,null,null,null,null,null,"                                                                           MPa",null,null,null,null,null,"                                                                           MPa",null,null,null,null,null,"                                                                           MPa",null,null,null,null,null,"                                                                           MPa",null,null,null,null,null,"                                                                           MPa",null,null,null,null,null,"                                                                           MPa",null,null,null,null,null,"                                                                           MPa"]
[null,null,null,"設 計 温 度",null,null,null,null,null,null,null,null,null,null,null,null,null,null,null,null,null,null,null,"                                                                             ℃",null,null,null,null,null,"                                                                             ℃",null,null,null,null,null,"                                                                             ℃",null,null,null,null,null,"                                                                             ℃",null,null,null,null,null,"                                                                             ℃",null,null,null,null,null,"                                                                             ℃",null,null,null,null,null,"                                                                             ℃"]
[null,null,null,"規  定  最  小  肉  厚",null,null,null,null,null,null,null,null,null,null,null,null,null,null,null,null,null,null,null,"                                                                           　㎜",null,null,null,null,null,"                                                                           　㎜",null,null,null,null,null,"                                                                           　㎜",null,null,null,null,null,"                                                                           　㎜",null,null,null,null,null,"                                                                           　㎜",null,null,null,null,null,"                                                                           　㎜",null,null,null,null,null,"                                                                           　㎜"]
[null,null,null,"機器の処理容積等",null,null,null,null,null,null,null,null,null,null,null,null,null,null,null,null,null,null,null,"吐出量　                                               m3/D(標準状態)\n内容積                                                 ㍑\n呼び径､外径又は内径                           A,　㎜",null,null,null,null,null,"吐出量　                                               m3/D(標準状態)\n内容積                                                 ㍑\n呼び径､外径又は内径                           A,　㎜",null,null,null,null,null,"吐出量　                                               m3/D(標準状態)\n内容積                                                 ㍑\n呼び径､外径又は内径                           A,　㎜",null,null,null,null,null,"吐出量　                                               m3/D(標準状態)\n内容積                                                 ㍑\n呼び径､外径又は内径                           A,　㎜",null,null,null,null,null,"吐出量　                                               m3/D(標準状態)\n内容積                                                 ㍑\n呼び径､外径又は内径                           A,　㎜",null,null,null,null,null,"吐出量　                                               m3/D(標準状態)\n内容積                                                 ㍑\n呼び径､外径又は内径                           A,　㎜",null,null,null,null,null,"吐出量　                                               m3/D(標準状態)\n内容積                                                 ㍑\n呼び径､外径又は内径                           A,　㎜"]
[null,"試験の種類",null,"主 要 部 材 質",null,null,null,null,null,null,null,null,null,null,null,null,null,null,null,null,null,null,null,"",null,null,null,null,null,"",null,null,null,null,null,"",null,null,null,null,null,"",null,null,null,null,null,"",null,null,null,null,null,"",null,null,null,null,null,""]
[null,null,null,"耐 圧 試 験 ",null,null,null,null,null,null,null,null,null,null,null,null,null,null,null,null,null,null,null,"                                                                           MPa",null,null,null,null,null,"                                                                           MPa",null,null,null,null,null,"                                                                           MPa",null,null,null,null,null,"                                                                           MPa",null,null,null,null,null,"                                                                           MPa",null,null,null,null,null,"                                                                           MPa",null,null,null,null,null,"                                                                           MPa"]
[null,null,null,"気 密 試 験 ",null,null,null,null,null,null,null,null,null,null,null,null,null,null,null,null,null,null,null,"                                                                           MPa",null,null,null,null,null,"                                                                           MPa",null,null,null,null,null,"                                                                           MPa",null,null,null,null,null,"                                                                           MPa",null,null,null,null,null,"                                                                           MPa",null,null,null,null,null,"                                                                           MPa",null,null,null,null,null,"                                                                           MPa"]
[null,null,null,"肉 厚 の確認方法",null,null,null,null,null,null,null,null,null,null,null,null,null,null,null,null,null,null,null,"強度計算\n加圧試験\n応力測定試験",null,null,null,null,null,"強度計算\n加圧試験\n応力測定試験",null,null,null,null,null,"強度計算\n加圧試験\n応力測定試験",null,null,null,null,null,"強度計算\n加圧試験\n応力測定試験",null,null,null,null,null,"強度計算\n加圧試験\n応力測定試験",null,null,null,null,null,"強度計算\n加圧試験\n応力測定試験",null,null,null,null,null,"強度計算\n加圧試験\n応力測定試験"]
[null,null,null,"非 破 壊 検 査",null,null,null,null,null,null,null,null,null,null,null,null,null,null,null,null,null,null,null,"",null,null,null,null,null,"",null,null,null,null,null,"",null,null,null,null,null,"",null,null,null,null,null,"",null,null,null,null,null,"",null,null,null,null,null,""]
[null,"高圧ガスの種類(名称）"]
[null,"備　　　　　　　　　　　　　　考"]

{"sheet":"KHPTHA","index":5,"n_rows":2,"n_cols":152,"rows_kept":2,"cut":false,"hidden":true,"merged":[]}
["EXCELNM","BMNCD","BMNNM","DATNO","DATKB","APMNGNO","GRFST02","ORFST02","MRFST04","SRFST05","RFNOST14","GRFED02","ORFED02","MRFED04","SRFED05","RFNOED14","RQTANCD","RQTANNM","RQDT","MCKBCD","MCKBNM","CRDCNT","PIPUNTCNT","APTANCD","APTANNM","APTANNA","APTANNB","APTANRN","APTANNK","BSOPL","APTADB","DEFKB","DEFNM","PDTANCD","PDTANNM","PDTANNA","PDTANNB","PDTANRN","PDTANNK","KUNICD","KUNINM","XMPLCD","XMPLNM","XMPLNA","XMPLNB","XMPLRN","XMPLNK","SEQKBH","SEQNMH","MSSACD","MSSANM","PREVCD","PREVNM","KENTANLCD","KENTANLNM","KENTANSCD","KENTANSNM","EDTPRAGT","RESJDCD","RESJDNM","ERCACPDT","TCMMVIN","RCCFIDT","RCFACPDT","PTRM1","PTRM2","PTRM3","PTRQCD","PTRQNM","PTRQODSP","SRCXCNUP","SRCXPCNT","SRCXCNKN","NYKNAN","PRFARYM","BILLKB","BILLKBNM","JDNNO","UDNDT","UDNDT1","UDNDT2","UDNDT3","UDNNO","UDNNO1","UDNNO2","UDNNO3","JDNCRTKB","UDNCRTKB","NDNCRTKB","KCOCRTKB","NKCCRTKB","NKPCRTKB","SSADT","SMADT","SEICD","SEINM","FEE","EXPLNCNT","TEUP","TEGKKN","TECRGK","TECROF","SEIGK","NDNDT","NYKNCD","NYKNNM","BNKCD","BNKNM","BNKBOCD","BNKBONM","NYKNGK","GNYKNGK","TEACPDT","TEACPCD","TEACPNM","TECM","NDNSMKN","SAMEXKB","SAMEXNM","SMGRRF02","SMORRF02","SMMRRF04","SMSRRF05","TENYKNCD","TENYKNNM","TENYKNGK","GTNYKNGK","EXPLKB","EXPLKBNM","GNFMCD","GNFMNM","PPKB","ALAPWDT","BILLPLNKN","BILLSUMKN","BILLPTEKN","BILLSTEKN","BILLPRTKB","BILLPRTDT","BILLPRTTM","BILLCLTID","BILLOPEID","BILLPRTTKB","BILLPRTTDT","BILLPRTTTM","BILLTCLTID","BILLTOPEID","NKNBMNCD","NKNDATNO","NDNNO","CSOUKN","DCRTKB"]
[null,null,null,null,null,null,null,null,null,null,null,null,null,null,null,null,null,null,null,null,null,null,null,null,null,null,null,null,null,null,null,null,null,null,null,null,null,null,null,null,null,null,null,null,null,null,null,null,null,null,null,null,null,null,null,null,null,null,null,null,null,null,null,null,null,null,null,null,null,null,null,null,null,null,null,null,null,null,null,null,null,null,null,null,null,null,null,null,null,null,null,null,null,null,null,null,null,null,null,null,null,null,null,null,null,null,null,null,null,null,null,null,null,null,null,null,null,null,null,null,null,null,null,"","","0","0","1","国内","000","通常採番","","","0","0","0","0","0","","","","","0","","","","","","","","0","4"]

{"sheet":"KHPTHB","index":6,"n_rows":1,"n_cols":14,"rows_kept":1,"cut":false,"hidden":true,"merged":[]}
["BMNCD","BMNNM","DATNO","DATKB","APMNGNO","ADDLINNO","PDTANCD","PDTANNM","PDTANNA","PDTANNB","PDTANRN","PDTANNK","KUNICD","KUNINM"]

{"sheet":"KHPTHC","index":7,"n_rows":1,"n_cols":12,"rows_kept":1,"cut":false,"hidden":true,"merged":[]}
["BMNCD","BMNNM","DATNO","DATKB","APMNGNO","ADDLINNO","XMPLCD","XMPLNM","XMPLNA","XMPLNB","XMPLRM","XMPLNK"]

{"sheet":"KHPTHF","index":8,"n_rows":1,"n_cols":10,"rows_kept":1,"cut":false,"hidden":true,"merged":[]}
["BMNCD","BMNNM","DATNO","DATKB","APMNGNO","LINNO","MSSAPIF","PREVAIF1","PREVAIF2","PREVAIF3"]

{"sheet":"KHPTHI","index":9,"n_rows":1,"n_cols":7,"rows_kept":1,"cut":false,"hidden":true,"merged":[]}
["BMNCD","BMNNM","DATNO","DATKB","APMNGNO","ADDLINNO","HINNMMD2"]

{"sheet":"KHPTRA","index":10,"n_rows":1,"n_cols":108,"rows_kept":1,"cut":false,"hidden":true,"merged":[]}
["BMNCD","BMNNM","DATNO","DATKB","APMNGNO","GRFST02","ORFST02","MRFST04","SRFST05","GRFED02","ORFED02","MRFED04","SRFED05","SRMLINNO","PRRLINNO","ADDLINNO","BASEDSRM","PRRADFLG","OPSTLPT","OPSTL","PRRCD","PRRNM","MCKBCD","MCKBNM","CRDCNT","STCNT","HINNMMD2","MCNNO","PSPMCNNO","SEQKB","SEQNM","DSPRSPT","DSPRS","DSPRSPU","DSTMPPT","DSTMP","RLWTCPT","RLWTCPOP","RLWTCINV","RLLWTCRU","RLWTCCLV","RLWTCFEE","MCPCMCN0","MCPCENM0","MCPCUNT0","MCPCEPT0","MCPCPIN0","MCPCFCL0","MCPCFEE0","MCPCEPT1","MCPCENM1","MCPCUNT1","MCPCPIN1","MCPCFCL1","MCPCFEE1","MCPCEPT2","MCPCENM2","MCPCUNT2","MCPCPIN2","MCPCFCL2","MCPCFEE2","MCPCEPT3","MCPCENM3","MCPCUNT3","MCPCPIN3","MCPCFCL3","MCPCFEE3","MPQMTRPT","MPQMTR","PRTSPRPT","PRTSPR","AGTSPRPT","AGTSPR","TCHWAYPT","TCHWAY","NDTEXPT","NDTEX","HPGSKBPT","HPGSKB","CMNTPT","CHKLSTCM","RCCFCMPT","RCCFCM","DATASRC","DATALINE","SEQKBS","SEQNMS","BKOUTKB","BKOUTNM","DSPCD","DSPNM","FECLOJCD","FECLOJNM","MDTSCD","MDTSNM","MDTSCNT","TRFST08","TRFED08","SBTTLKN","SRMCUP","SRMCSCNT","SRMCKN","JPCTUP","JPCTSRMC","JPCTKN","OUNTGK","TSRMCCNT","GKEKN"]

{"sheet":"KHPTRB","index":11,"n_rows":1,"n_cols":25,"rows_kept":1,"cut":false,"hidden":true,"merged":[]}
["BMNCD","BMNNM","DATNO","DATKB","APMNGNO","LINNOEX","GRF02","ORF02","MRF04","SRF05","RFNO14","MCNNO","MCNNOH","RLWTCPOP","RLWTCINV","RLLWTCRU","TCMMVB","APWDT","DRPCD","DRPNM","AGRF02","AORF02","AMRF04","ASRF05","ARFNO14"]

{"sheet":"KHPTRC","index":12,"n_rows":2191,"n_cols":31,"rows_kept":2191,"cut":false,"hidden":true,"merged":[]}
["BMNCD","BMNNM","DATNO","DATKB","APMNGNO","GRFST02","ORFST02","MRFST04","SRFST05","GRFED02","ORFED02","MRFED04","SRFED05","SRMLINNO","PRRLINNO","ADDLINNO","DTLLINNO","LINNO","MCKBCD","MCKBNM","NMPCPEPT","NMPCPE","MCPCUNT","CALCVL","FEEUCLV","TNKA","CNTSTCNT","SRMCCNT","KNGK","FECLOJCD","FECLOJNM"]
[]
[]
[]
[]
[]
[]
[]
[]
[]
[]
[]
[]
[]
[]
[]
[]
[]
[]
[]
[]
[]
[]
[]
[]
[]
[]
[]
[]
[]
[]
[]
[]
[]
[]
[]
[]
[]
[]
[]
[]
[]
[]
[]
[]
[]
[]
[]
[]
[]
[]
[]
[]
[]
[]
[]
[]
[]
[]
[]
[]
[]
[]
[]
[]
[]
[]
[]
[]
[]
[]
[]
[]
[]
[]
[]
[]
[]
[]
[]
[]
[]
[]
[]
[]
[]
[]
[]
[]
[]
[]
[]
[]
[]
[]
[]
[]
[]
[]
[]
[]
[]
[]
[]
[]
[]
[]
[]
[]
[]
[]
[]
[]
[]
[]
[]
[]
[]
[]
[]
[]
[]
[]
[]
[]
[]
[]
[]
[]
[]
[]
[]
[]
[]
[]
[]
[]
[]
[]
[]
[]
[]
[]
[]
[]
[]
[]
[]
[]
[]
[]
[]
[]
[]
[]
[]
[]
[]
[]
[]
[]
[]
[]
[]
[]
[]
[]
[]
[]
[]
[]
[]
[]
[]
[]
[]
[]
[]
[]
[]
[]
[]
[]
[]
[]
[]
[]
[]
[]
[]
[]
[]
[]
[]
[]
[]
[]
[]
[]
[]
[]
[]
[]
[]
[]
[]
[]
[]
[]
[]
[]
[]
[]
[]
[]
[]
[]
[]
[]
[]
[]
[]
[]
[]
[]
[]
[]
[]
[]
[]
[]
[]
[]
[]
[]
[]
[]
[]
[]
[]
[]
[]
[]
[]
[]
[]
[]
[]
[]
[]
[]
[]
[]
[]
[]
[]
[]
[]
[]
[]
[]
[]
[]
[]
[]
[]
[]
[]
[]
[]
[]
[]
[]
[]
[]
[]
[]
[]
[]
[]
[]
[]
[]
[]
[]
[]
[]
[]
[]
[]
[]
[]
[]
[]
[]
[]
[]
[]
[]
[]
[]
[]
[]
[]
[]
[]
[]
[]
[]
[]
[]
[]
[]
[]
[]
[]
[]
[]
[]
[]
[]
[]
[]
[]
[]
[]
[]
[]
[]
[]
[]
[]
[]
[]
[]
[]
[]
[]
[]
[]
[]
[]
[]
[]
[]
[]
[]
[]
[]
[]
[]
[]
[]
[]
[]
[]
[]
[]
[]
[]
[]
[]
[]
[]
[]
[]
[]
[]
[]
[]
[]
[]
[]
[]
[]
[]
[]
[]
[]
[]
[]
[]
[]
[]
[]
[]
[]
[]
[]
[]
[]
[]
[]
[]
[]
[]
[]
[]
[]
[]
[]
[]
[]
[]
[]
[]
[]
[]
[]
[]
[]
[]
[]
[]
[]
[]
[]
[]
[]
[]
[]
[]
[]
[]
[]
[]
[]
[]
[]
[]
[]
[]
[]
[]
[]
[]
[]
[]
[]
[]
[]
[]
[]
[]
[]
[]
[]
[]
[]
[]
[]
[]
[]
[]
[]
[]
[]
[]
[]
[]
[]
[]
[]
[]
[]
[]
[]
[]
[]
[]
[]
[]
[]
[]
[]
[]
[]
[]
[]
[]
[]
[]
[]
[]
[]
[]
[]
[]
[]
[]
[]
[]
[]
[]
[]
[]
[]
[]
[]
[]
[]
[]
[]
[]
[]
[]
[]
[]
[]
[]
[]
[]
[]
[]
[]
[]
[]
[]
[]
[]
[]
[]
[]
[]
[]
[]
[]
[]
[]
[]
[]
[]
[]
[]
[]
[]
[]
[]
[]
[]
[]
[]
[]
[]
[]
[]
[]
[]
[]
[]
[]
[]
[]
[]
[]
[]
[]
[]
[]
[]
[]
[]
[]
[]
[]
[]
[]
[]
[]
[]
[]
[]
[]
[]
[]
[]
[]
[]
[]
[]
[]
[]
[]
[]
[]
[]
[]
[]
[]
[]
[]
[]
[]
[]
[]
[]
[]
[]
[]
[]
[]
[]
[]
[]
[]
[]
[]
[]
[]
[]
[]
[]
[]
[]
[]
[]
[]
[]
[]
[]
[]
[]
[]
[]
[]
[]
[]
[]
[]
[]
[]
[]
[]
[]
[]
[]
[]
[]
[]
[]
[]
[]
[]
[]
[]
[]
[]
[]
[]
[]
[]
[]
[]
[]
[]
[]
[]
[]
[]
[]
[]
[]
[]
[]
[]
[]
[]
[]
[]
[]
[]
[]
[]
[]
[]
[]
[]
[]
[]
[]
[]
[]
[]
[]
[]
[]
[]
[]
[]
[]
[]
[]
[]
[]
[]
[]
[]
[]
[]
[]
[]
[]
[]
[]
[]
[]
[]
[]
[]
[]
[]
[]
[]
[]
[]
[]
[]
[]
[]
[]
[]
[]
[]
[]
[]
[]
[]
[]
[]
[]
[]
[]
[]
[]
[]
[]
[]
[]
[]
[]
[]
[]
[]
[]
[]
[]
[]
[]
[]
[]
[]
[]
[]
[]
[]
[]
[]
[]
[]
[]
[]
[]
[]
[]
[]
[]
[]
[]
[]
[]
[]
[]
[]
[]
[]
[]
[]
[]
[]
[]
[]
[]
[]
[]
[]
[]
[]
[]
[]
[]
[]
[]
[]
[]
[]
[]
[]
[]
[]
[]
[]
[]
[]
[]
[]
[]
[]
[]
[]
[]
[]
[]
[]
[]
[]
[]
[]
[]
[]
[]
[]
[]
[]
[]
[]
[]
[]
[]
[]
[]
[]
[]
[]
[]
[]
[]
[]
[]
[]
[]
[]
[]
[]
[]
[]
[]
[]
[]
[]
[]
[]
[]
[]
[]
[]
[]
[]
[]
[]
[]
[]
[]
[]
[]
[]
[]
[]
[]
[]
[]
[]
[]
[]
[]
[]
[]
[]
[]
[]
[]
[]
[]
[]
[]
[]
[]
[]
[]
[]
[]
[]
[]
[]
[]
[]
[]
[]
[]
[]
[]
[]
[]
[]
[]
[]
[]
[]
[]
[]
[]
[]
[]
[]
[]
[]
[]
[]
[]
[]
[]
[]
[]
[]
[]
[]
[]
[]
[]
[]
[]
[]
[]
[]
[]
[]
[]
[]
[]
[]
[]
[]
[]
[]
[]
[]
[]
[]
[]
[]
[]
[]
[]
[]
[]
[]
[]
[]
[]
[]
[]
[]
[]
[]
[]
[]
[]
[]
[]
[]
[]
[]
[]
[]
[]
[]
[]
[]
[]
[]
[]
[]
[]
[]
[]
[]
[]
[]
[]
[]
[]
[]
[]
[]
[]
[]
[]
[]
[]
[]
[]
[null,null,null,null,null,null,null,null,null,null,null,"Z"]
[null,null,null,null,null,null,null,null,null,null,null,"Z"]
[null,null,null,null,null,null,null,null,null,null,null,"Z"]
[null,null,null,null,null,null,null,null,null,null,null,"Z"]
[null,null,null,null,null,null,null,null,null,null,null,"Z"]
[null,null,null,null,null,null,null,null,null,null,null,"Z"]
[null,null,null,null,null,null,null,null,null,null,null,"Z"]
[null,null,null,null,null,null,null,null,null,null,null,"Z"]
[null,null,null,null,null,null,null,null,null,null,null,"Z"]
[null,null,null,null,null,null,null,null,null,null,null,"Z"]
[null,null,null,null,null,null,null,null,null,null,null,"Z"]
[null,null,null,null,null,null,null,null,null,null,null,"Z"]
[null,null,null,null,null,null,null,null,null,null,null,"Z"]
[null,null,null,null,null,null,null,null,null,null,null,"Z"]
[null,null,null,null,null,null,null,null,null,null,null,"Z"]
[null,null,null,null,null,null,null,null,null,null,null,"Z"]
[null,null,null,null,null,null,null,null,null,null,null,"Z"]
[null,null,null,null,null,null,null,null,null,null,null,"Z"]
[null,null,null,null,null,null,null,null,null,null,null,"Z"]
[null,null,null,null,null,null,null,null,null,null,null,"Z"]
[null,null,null,null,null,null,null,null,null,null,null,"Z"]
[null,null,null,null,null,null,null,null,null,null,null,"Z"]
[null,null,null,null,null,null,null,null,null,null,null,"Z"]
[null,null,null,null,null,null,null,null,null,null,null,"Z"]
[null,null,null,null,null,null,null,null,null,null,null,"Z"]
[null,null,null,null,null,null,null,null,null,null,null,"Z"]
[null,null,null,null,null,null,null,null,null,null,null,"Z"]
[null,null,null,null,null,null,null,null,null,null,null,"Z"]
[null,null,null,null,null,null,null,null,null,null,null,"Z"]
[null,null,null,null,null,null,null,null,null,null,null,"Z"]
[null,null,null,null,null,null,null,null,null,null,null,"Z"]
[null,null,null,null,null,null,null,null,null,null,null,"Z"]
[null,null,null,null,null,null,null,null,null,null,null,"Z"]
[null,null,null,null,null,null,null,null,null,null,null,"Z"]
[null,null,null,null,null,null,null,null,null,null,null,"Z"]
[null,null,null,null,null,null,null,null,null,null,null,"Z"]
[null,null,null,null,null,null,null,null,null,null,null,"Z"]
[null,null,null,null,null,null,null,null,null,null,null,"Z"]
[null,null,null,null,null,null,null,null,null,null,null,"Z"]
[null,null,null,null,null,null,null,null,null,null,null,"Z"]
[null,null,null,null,null,null,null,null,null,null,null,"Z"]
[null,null,null,null,null,null,null,null,null,null,null,"Z"]
[null,null,null,null,null,null,null,null,null,null,null,"Z"]
[null,null,null,null,null,null,null,null,null,null,null,"Z"]
[null,null,null,null,null,null,null,null,null,null,null,"Z"]
[null,null,null,null,null,null,null,null,null,null,null,"Z"]
[null,null,null,null,null,null,null,null,null,null,null,"Z"]
[null,null,null,null,null,null,null,null,null,null,null,"Z"]
[null,null,null,null,null,null,null,null,null,null,null,"Z"]
[null,null,null,null,null,null,null,null,null,null,null,"Z"]
[null,null,null,null,null,null,null,null,null,null,null,"Z"]
[null,null,null,null,null,null,null,null,null,null,null,"Z"]
[null,null,null,null,null,null,null,null,null,null,null,"Z"]
[null,null,null,null,null,null,null,null,null,null,null,"Z"]
[null,null,null,null,null,null,null,null,null,null,null,"Z"]
[null,null,null,null,null,null,null,null,null,null,null,"Z"]
[null,null,null,null,null,null,null,null,null,null,null,"Z"]
[null,null,null,null,null,null,null,null,null,null,null,"Z"]
[null,null,null,null,null,null,null,null,null,null,null,"Z"]
[null,null,null,null,null,null,null,null,null,null,null,"Z"]
[null,null,null,null,null,null,null,null,null,null,null,"Z"]
[null,null,null,null,null,null,null,null,null,null,null,"Z"]
[null,null,null,null,null,null,null,null,null,null,null,"Z"]
[null,null,null,null,null,null,null,null,null,null,null,"Z"]
[null,null,null,null,null,null,null,null,null,null,null,"Z"]
[null,null,null,null,null,null,null,null,null,null,null,"Z"]
[null,null,null,null,null,null,null,null,null,null,null,"Z"]
[null,null,null,null,null,null,null,null,null,null,null,"Z"]
[null,null,null,null,null,null,null,null,null,null,null,"Z"]
[null,null,null,null,null,null,null,null,null,null,null,"Z"]
[null,null,null,null,null,null,null,null,null,null,null,"Z"]
[null,null,null,null,null,null,null,null,null,null,null,"Z"]
[null,null,null,null,null,null,null,null,null,null,null,"Z"]
[null,null,null,null,null,null,null,null,null,null,null,"Z"]
[null,null,null,null,null,null,null,null,null,null,null,"Z"]
[null,null,null,null,null,null,null,null,null,null,null,"Z"]
[null,null,null,null,null,null,null,null,null,null,null,"Z"]
[null,null,null,null,null,null,null,null,null,null,null,"Z"]
[null,null,null,null,null,null,null,null,null,null,null,"Z"]
[null,null,null,null,null,null,null,null,null,null,null,"Z"]
[null,null,null,null,null,null,null,null,null,null,null,"Z"]
[null,null,null,null,null,null,null,null,null,null,null,"Z"]
[null,null,null,null,null,null,null,null,null,null,null,"Z"]
[null,null,null,null,null,null,null,null,null,null,null,"Z"]
[null,null,null,null,null,null,null,null,null,null,null,"Z"]
[null,null,null,null,null,null,null,null,null,null,null,"Z"]
[null,null,null,null,null,null,null,null,null,null,null,"Z"]
[null,null,null,null,null,null,null,null,null,null,null,"Z"]
[null,null,null,null,null,null,null,null,null,null,null,"Z"]
[null,null,null,null,null,null,null,null,null,null,null,"Z"]
[null,null,null,null,null,null,null,null,null,null,null,"Z"]
[null,null,null,null,null,null,null,null,null,null,null,"Z"]
[null,null,null,null,null,null,null,null,null,null,null,"Z"]
[null,null,null,null,null,null,null,null,null,null,null,"Z"]
[null,null,null,null,null,null,null,null,null,null,null,"Z"]
[null,null,null,null,null,null,null,null,null,null,null,"Z"]
[null,null,null,null,null,null,null,null,null,null,null,"Z"]
[null,null,null,null,null,null,null,null,null,null,null,"Z"]
[null,null,null,null,null,null,null,null,null,null,null,"Z"]
[null,null,null,null,null,null,null,null,null,null,null,"Z"]
[null,null,null,null,null,null,null,null,null,null,null,"Z"]
[null,null,null,null,null,null,null,null,null,null,null,"Z"]
[null,null,null,null,null,null,null,null,null,null,null,"Z"]
[null,null,null,null,null,null,null,null,null,null,null,"Z"]
[null,null,null,null,null,null,null,null,null,null,null,"Z"]
[null,null,null,null,null,null,null,null,null,null,null,"Z"]
[null,null,null,null,null,null,null,null,null,null,null,"Z"]
[null,null,null,null,null,null,null,null,null,null,null,"Z"]
[null,null,null,null,null,null,null,null,null,null,null,"Z"]
[null,null,null,null,null,null,null,null,null,null,null,"Z"]
[null,null,null,null,null,null,null,null,null,null,null,"Z"]
[null,null,null,null,null,null,null,null,null,null,null,"Z"]
[null,null,null,null,null,null,null,null,null,null,null,"Z"]
[null,null,null,null,null,null,null,null,null,null,null,"Z"]
[null,null,null,null,null,null,null,null,null,null,null,"Z"]
[null,null,null,null,null,null,null,null,null,null,null,"Z"]
[null,null,null,null,null,null,null,null,null,null,null,"Z"]
[null,null,null,null,null,null,null,null,null,null,null,"Z"]
[null,null,null,null,null,null,null,null,null,null,null,"Z"]
[null,null,null,null,null,null,null,null,null,null,null,"Z"]
[null,null,null,null,null,null,null,null,null,null,null,"Z"]
[null,null,null,null,null,null,null,null,null,null,null,"Z"]
[null,null,null,null,null,null,null,null,null,null,null,"Z"]
[null,null,null,null,null,null,null,null,null,null,null,"Z"]
[null,null,null,null,null,null,null,null,null,null,null,"Z"]
[null,null,null,null,null,null,null,null,null,null,null,"Z"]
[null,null,null,null,null,null,null,null,null,null,null,"Z"]
[null,null,null,null,null,null,null,null,null,null,null,"Z"]
[null,null,null,null,null,null,null,null,null,null,null,"Z"]
[null,null,null,null,null,null,null,null,null,null,null,"Z"]
[null,null,null,null,null,null,null,null,null,null,null,"Z"]
[null,null,null,null,null,null,null,null,null,null,null,"Z"]
[null,null,null,null,null,null,null,null,null,null,null,"Z"]
[null,null,null,null,null,null,null,null,null,null,null,"Z"]
[null,null,null,null,null,null,null,null,null,null,null,"Z"]
[null,null,null,null,null,null,null,null,null,null,null,"Z"]
[null,null,null,null,null,null,null,null,null,null,null,"Z"]
[null,null,null,null,null,null,null,null,null,null,null,"Z"]
[null,null,null,null,null,null,null,null,null,null,null,"Z"]
[null,null,null,null,null,null,null,null,null,null,null,"Z"]
[null,null,null,null,null,null,null,null,null,null,null,"Z"]
[null,null,null,null,null,null,null,null,null,null,null,"Z"]
[null,null,null,null,null,null,null,null,null,null,null,"Z"]
[null,null,null,null,null,null,null,null,null,null,null,"Z"]
[null,null,null,null,null,null,null,null,null,null,null,"Z"]
[null,null,null,null,null,null,null,null,null,null,null,"Z"]
[null,null,null,null,null,null,null,null,null,null,null,"Z"]
[null,null,null,null,null,null,null,null,null,null,null,"Z"]
[null,null,null,null,null,null,null,null,null,null,null,"Z"]
[null,null,null,null,null,null,null,null,null,null,null,"Z"]
[null,null,null,null,null,null,null,null,null,null,null,"Z"]
[null,null,null,null,null,null,null,null,null,null,null,"Z"]
[null,null,null,null,null,null,null,null,null,null,null,"Z"]
[null,null,null,null,null,null,null,null,null,null,null,"Z"]
[null,null,null,null,null,null,null,null,null,null,null,"Z"]
[null,null,null,null,null,null,null,null,null,null,null,"Z"]
[null,null,null,null,null,null,null,null,null,null,null,"Z"]
[null,null,null,null,null,null,null,null,null,null,null,"Z"]
[null,null,null,null,null,null,null,null,null,null,null,"Z"]
[null,null,null,null,null,null,null,null,null,null,null,"Z"]
[null,null,null,null,null,null,null,null,null,null,null,"Z"]
[null,null,null,null,null,null,null,null,null,null,null,"Z"]
[null,null,null,null,null,null,null,null,null,null,null,"Z"]
[null,null,null,null,null,null,null,null,null,null,null,"Z"]
[null,null,null,null,null,null,null,null,null,null,null,"Z"]
[null,null,null,null,null,null,null,null,null,null,null,"Z"]
[null,null,null,null,null,null,null,null,null,null,null,"Z"]
[null,null,null,null,null,null,null,null,null,null,null,"Z"]
[null,null,null,null,null,null,null,null,null,null,null,"Z"]
[null,null,null,null,null,null,null,null,null,null,null,"Z"]
[null,null,null,null,null,null,null,null,null,null,null,"Z"]
[null,null,null,null,null,null,null,null,null,null,null,"Z"]
[null,null,null,null,null,null,null,null,null,null,null,"Z"]
[null,null,null,null,null,null,null,null,null,null,null,"Z"]
[null,null,null,null,null,null,null,null,null,null,null,"Z"]
[null,null,null,null,null,null,null,null,null,null,null,"Z"]
[null,null,null,null,null,null,null,null,null,null,null,"Z"]
[null,null,null,null,null,null,null,null,null,null,null,"Z"]
[null,null,null,null,null,null,null,null,null,null,null,"Z"]
[null,null,null,null,null,null,null,null,null,null,null,"Z"]
[null,null,null,null,null,null,null,null,null,null,null,"Z"]
[null,null,null,null,null,null,null,null,null,null,null,"Z"]
[null,null,null,null,null,null,null,null,null,null,null,"Z"]
[null,null,null,null,null,null,null,null,null,null,null,"Z"]
[null,null,null,null,null,null,null,null,null,null,null,"Z"]
[null,null,null,null,null,null,null,null,null,null,null,"Z"]
[null,null,null,null,null,null,null,null,null,null,null,"Z"]
[null,null,null,null,null,null,null,null,null,null,null,"Z"]
[null,null,null,null,null,null,null,null,null,null,null,"Z"]
[null,null,null,null,null,null,null,null,null,null,null,"Z"]
[null,null,null,null,null,null,null,null,null,null,null,"Z"]
[null,null,null,null,null,null,null,null,null,null,null,"Z"]
[null,null,null,null,null,null,null,null,null,null,null,"Z"]
[null,null,null,null,null,null,null,null,null,null,null,"Z"]
[null,null,null,null,null,null,null,null,null,null,null,"Z"]
[null,null,null,null,null,null,null,null,null,null,null,"Z"]
[null,null,null,null,null,null,null,null,null,null,null,"Z"]
[null,null,null,null,null,null,null,null,null,null,null,"Z"]
[null,null,null,null,null,null,null,null,null,null,null,"Z"]
[null,null,null,null,null,null,null,null,null,null,null,"Z"]
[null,null,null,null,null,null,null,null,null,null,null,"Z"]
[null,null,null,null,null,null,null,null,null,null,null,"Z"]
[null,null,null,null,null,null,null,null,null,null,null,"Z"]
[null,null,null,null,null,null,null,null,null,null,null,"Z"]
[null,null,null,null,null,null,null,null,null,null,null,"Z"]
[null,null,null,null,null,null,null,null,null,null,null,"Z"]
[null,null,null,null,null,null,null,null,null,null,null,"Z"]
[null,null,null,null,null,null,null,null,null,null,null,"Z"]
[null,null,null,null,null,null,null,null,null,null,null,"Z"]
[null,null,null,null,null,null,null,null,null,null,null,"Z"]
[null,null,null,null,null,null,null,null,null,null,null,"Z"]
[null,null,null,null,null,null,null,null,null,null,null,"Z"]
[null,null,null,null,null,null,null,null,null,null,null,"Z"]
[null,null,null,null,null,null,null,null,null,null,null,"Z"]
[null,null,null,null,null,null,null,null,null,null,null,"Z"]
[null,null,null,null,null,null,null,null,null,null,null,"Z"]
[null,null,null,null,null,null,null,null,null,null,null,"Z"]
[null,null,null,null,null,null,null,null,null,null,null,"Z"]
[null,null,null,null,null,null,null,null,null,null,null,"Z"]
[null,null,null,null,null,null,null,null,null,null,null,"Z"]
[null,null,null,null,null,null,null,null,null,null,null,"Z"]
[null,null,null,null,null,null,null,null,null,null,null,"Z"]
[null,null,null,null,null,null,null,null,null,null,null,"Z"]
[null,null,null,null,null,null,null,null,null,null,null,"Z"]
[null,null,null,null,null,null,null,null,null,null,null,"Z"]
[null,null,null,null,null,null,null,null,null,null,null,"Z"]
[null,null,null,null,null,null,null,null,null,null,null,"Z"]
[null,null,null,null,null,null,null,null,null,null,null,"Z"]
[null,null,null,null,null,null,null,null,null,null,null,"Z"]
[null,null,null,null,null,null,null,null,null,null,null,"Z"]
[null,null,null,null,null,null,null,null,null,null,null,"Z"]
[null,null,null,null,null,null,null,null,null,null,null,"Z"]
[null,null,null,null,null,null,null,null,null,null,null,"Z"]
[null,null,null,null,null,null,null,null,null,null,null,"Z"]
[null,null,null,null,null,null,null,null,null,null,null,"Z"]
[null,null,null,null,null,null,null,null,null,null,null,"Z"]
[null,null,null,null,null,null,null,null,null,null,null,"Z"]
[null,null,null,null,null,null,null,null,null,null,null,"Z"]
[null,null,null,null,null,null,null,null,null,null,null,"Z"]
[null,null,null,null,null,null,null,null,null,null,null,"Z"]
[null,null,null,null,null,null,null,null,null,null,null,"Z"]
[null,null,null,null,null,null,null,null,null,null,null,"Z"]
[null,null,null,null,null,null,null,null,null,null,null,"Z"]
[null,null,null,null,null,null,null,null,null,null,null,"Z"]
[null,null,null,null,null,null,null,null,null,null,null,"Z"]
[null,null,null,null,null,null,null,null,null,null,null,"Z"]
[null,null,null,null,null,null,null,null,null,null,null,"Z"]
[null,null,null,null,null,null,null,null,null,null,null,"Z"]
[null,null,null,null,null,null,null,null,null,null,null,"Z"]
[null,null,null,null,null,null,null,null,null,null,null,"Z"]
[null,null,null,null,null,null,null,null,null,null,null,"Z"]
[null,null,null,null,null,null,null,null,null,null,null,"Z"]
[null,null,null,null,null,null,null,null,null,null,null,"Z"]
[null,null,null,null,null,null,null,null,null,null,null,"Z"]
[null,null,null,null,null,null,null,null,null,null,null,"Z"]
[null,null,null,null,null,null,null,null,null,null,null,"Z"]
[null,null,null,null,null,null,null,null,null,null,null,"Z"]
[null,null,null,null,null,null,null,null,null,null,null,"Z"]
[null,null,null,null,null,null,null,null,null,null,null,"Z"]
[null,null,null,null,null,null,null,null,null,null,null,"Z"]
[null,null,null,null,null,null,null,null,null,null,null,"Z"]
[null,null,null,null,null,null,null,null,null,null,null,"Z"]
[null,null,null,null,null,null,null,null,null,null,null,"Z"]
[null,null,null,null,null,null,null,null,null,null,null,"Z"]
[null,null,null,null,null,null,null,null,null,null,null,"Z"]
[null,null,null,null,null,null,null,null,null,null,null,"Z"]
[null,null,null,null,null,null,null,null,null,null,null,"Z"]
[null,null,null,null,null,null,null,null,null,null,null,"Z"]
[null,null,null,null,null,null,null,null,null,null,null,"Z"]
[null,null,null,null,null,null,null,null,null,null,null,"Z"]
[null,null,null,null,null,null,null,null,null,null,null,"Z"]
[null,null,null,null,null,null,null,null,null,null,null,"Z"]
[null,null,null,null,null,null,null,null,null,null,null,"Z"]
[null,null,null,null,null,null,null,null,null,null,null,"Z"]
[null,null,null,null,null,null,null,null,null,null,null,"Z"]
[null,null,null,null,null,null,null,null,null,null,null,"Z"]
[null,null,null,null,null,null,null,null,null,null,null,"Z"]
[null,null,null,null,null,null,null,null,null,null,null,"Z"]
[null,null,null,null,null,null,null,null,null,null,null,"Z"]
[null,null,null,null,null,null,null,null,null,null,null,"Z"]
[null,null,null,null,null,null,null,null,null,null,null,"Z"]
[null,null,null,null,null,null,null,null,null,null,null,"Z"]
[null,null,null,null,null,null,null,null,null,null,null,"Z"]
[null,null,null,null,null,null,null,null,null,null,null,"Z"]
[null,null,null,null,null,null,null,null,null,null,null,"Z"]
[null,null,null,null,null,null,null,null,null,null,null,"Z"]
[null,null,null,null,null,null,null,null,null,null,null,"Z"]
[null,null,null,null,null,null,null,null,null,null,null,"Z"]
[null,null,null,null,null,null,null,null,null,null,null,"Z"]
[null,null,null,null,null,null,null,null,null,null,null,"Z"]
[null,null,null,null,null,null,null,null,null,null,null,"Z"]
[null,null,null,null,null,null,null,null,null,null,null,"Z"]
[null,null,null,null,null,null,null,null,null,null,null,"Z"]
[null,null,null,null,null,null,null,null,null,null,null,"Z"]
[null,null,null,null,null,null,null,null,null,null,null,"Z"]
[null,null,null,null,null,null,null,null,null,null,null,"Z"]
[null,null,null,null,null,null,null,null,null,null,null,"Z"]
[null,null,null,null,null,null,null,null,null,null,null,"Z"]
[null,null,null,null,null,null,null,null,null,null,null,"Z"]
[null,null,null,null,null,null,null,null,null,null,null,"Z"]
[null,null,null,null,null,null,null,null,null,null,null,"Z"]
[null,null,null,null,null,null,null,null,null,null,null,"Z"]
[null,null,null,null,null,null,null,null,null,null,null,"Z"]
[null,null,null,null,null,null,null,null,null,null,null,"Z"]
[null,null,null,null,null,null,null,null,null,null,null,"Z"]
[null,null,null,null,null,null,null,null,null,null,null,"Z"]
[null,null,null,null,null,null,null,null,null,null,null,"Z"]
[null,null,null,null,null,null,null,null,null,null,null,"Z"]
[null,null,null,null,null,null,null,null,null,null,null,"Z"]
[null,null,null,null,null,null,null,null,null,null,null,"Z"]
[null,null,null,null,null,null,null,null,null,null,null,"Z"]
[null,null,null,null,null,null,null,null,null,null,null,"Z"]
[null,null,null,null,null,null,null,null,null,null,null,"Z"]
[null,null,null,null,null,null,null,null,null,null,null,"Z"]
[null,null,null,null,null,null,null,null,null,null,null,"Z"]
[null,null,null,null,null,null,null,null,null,null,null,"Z"]
[null,null,null,null,null,null,null,null,null,null,null,"Z"]
[null,null,null,null,null,null,null,null,null,null,null,"Z"]
[null,null,null,null,null,null,null,null,null,null,null,"Z"]
[null,null,null,null,null,null,null,null,null,null,null,"Z"]
[null,null,null,null,null,null,null,null,null,null,null,"Z"]
[null,null,null,null,null,null,null,null,null,null,null,"Z"]
[null,null,null,null,null,null,null,null,null,null,null,"Z"]
[null,null,null,null,null,null,null,null,null,null,null,"Z"]
[null,null,null,null,null,null,null,null,null,null,null,"Z"]
[null,null,null,null,null,null,null,null,null,null,null,"Z"]
[null,null,null,null,null,null,null,null,null,null,null,"Z"]
[null,null,null,null,null,null,null,null,null,null,null,"Z"]
[null,null,null,null,null,null,null,null,null,null,null,"Z"]
[null,null,null,null,null,null,null,null,null,null,null,"Z"]
[null,null,null,null,null,null,null,null,null,null,null,"Z"]
[null,null,null,null,null,null,null,null,null,null,null,"Z"]
[null,null,null,null,null,null,null,null,null,null,null,"Z"]
[null,null,null,null,null,null,null,null,null,null,null,"Z"]
[null,null,null,null,null,null,null,null,null,null,null,"Z"]
[null,null,null,null,null,null,null,null,null,null,null,"Z"]
[null,null,null,null,null,null,null,null,null,null,null,"Z"]
[null,null,null,null,null,null,null,null,null,null,null,"Z"]
[null,null,null,null,null,null,null,null,null,null,null,"Z"]
[null,null,null,null,null,null,null,null,null,null,null,"Z"]
[null,null,null,null,null,null,null,null,null,null,null,"Z"]
[null,null,null,null,null,null,null,null,null,null,null,"Z"]
[null,null,null,null,null,null,null,null,null,null,null,"Z"]
[null,null,null,null,null,null,null,null,null,null,null,"Z"]
[null,null,null,null,null,null,null,null,null,null,null,"Z"]
[null,null,null,null,null,null,null,null,null,null,null,"Z"]
[null,null,null,null,null,null,null,null,null,null,null,"Z"]
[null,null,null,null,null,null,null,null,null,null,null,"Z"]
[null,null,null,null,null,null,null,null,null,null,null,"Z"]
[null,null,null,null,null,null,null,null,null,null,null,"Z"]
[null,null,null,null,null,null,null,null,null,null,null,"Z"]
[null,null,null,null,null,null,null,null,null,null,null,"Z"]
[null,null,null,null,null,null,null,null,null,null,null,"Z"]
[null,null,null,null,null,null,null,null,null,null,null,"Z"]
[null,null,null,null,null,null,null,null,null,null,null,"Z"]
[null,null,null,null,null,null,null,null,null,null,null,"Z"]
[null,null,null,null,null,null,null,null,null,null,null,"Z"]
[null,null,null,null,null,null,null,null,null,null,null,"Z"]
[null,null,null,null,null,null,null,null,null,null,null,"Z"]
[null,null,null,null,null,null,null,null,null,null,null,"Z"]
[null,null,null,null,null,null,null,null,null,null,null,"Z"]
[null,null,null,null,null,null,null,null,null,null,null,"Z"]
[null,null,null,null,null,null,null,null,null,null,null,"Z"]
[null,null,null,null,null,null,null,null,null,null,null,"Z"]
[null,null,null,null,null,null,null,null,null,null,null,"Z"]
[null,null,null,null,null,null,null,null,null,null,null,"Z"]
[null,null,null,null,null,null,null,null,null,null,null,"Z"]
[null,null,null,null,null,null,null,null,null,null,null,"Z"]
[null,null,null,null,null,null,null,null,null,null,null,"Z"]
[null,null,null,null,null,null,null,null,null,null,null,"Z"]
[null,null,null,null,null,null,null,null,null,null,null,"Z"]
[null,null,null,null,null,null,null,null,null,null,null,"Z"]
[null,null,null,null,null,null,null,null,null,null,null,"Z"]
[null,null,null,null,null,null,null,null,null,null,null,"Z"]
[null,null,null,null,null,null,null,null,null,null,null,"Z"]
[null,null,null,null,null,null,null,null,null,null,null,"Z"]
[null,null,null,null,null,null,null,null,null,null,null,"Z"]
[null,null,null,null,null,null,null,null,null,null,null,"Z"]
[null,null,null,null,null,null,null,null,null,null,null,"Z"]
[null,null,null,null,null,null,null,null,null,null,null,"Z"]
[null,null,null,null,null,null,null,null,null,null,null,"Z"]
[null,null,null,null,null,null,null,null,null,null,null,"Z"]
[null,null,null,null,null,null,null,null,null,null,null,"Z"]
[null,null,null,null,null,null,null,null,null,null,null,"Z"]
[null,null,null,null,null,null,null,null,null,null,null,"Z"]
[null,null,null,null,null,null,null,null,null,null,null,"Z"]
[null,null,null,null,null,null,null,null,null,null,null,"Z"]
[null,null,null,null,null,null,null,null,null,null,null,"Z"]
[null,null,null,null,null,null,null,null,null,null,null,"Z"]
[null,null,null,null,null,null,null,null,null,null,null,"Z"]
[null,null,null,null,null,null,null,null,null,null,null,"Z"]
[null,null,null,null,null,null,null,null,null,null,null,"Z"]
[null,null,null,null,null,null,null,null,null,null,null,"Z"]
[null,null,null,null,null,null,null,null,null,null,null,"Z"]
[null,null,null,null,null,null,null,null,null,null,null,"Z"]
[null,null,null,null,null,null,null,null,null,null,null,"Z"]
[null,null,null,null,null,null,null,null,null,null,null,"Z"]
[null,null,null,null,null,null,null,null,null,null,null,"Z"]
[null,null,null,null,null,null,null,null,null,null,null,"Z"]
[null,null,null,null,null,null,null,null,null,null,null,"Z"]
[null,null,null,null,null,null,null,null,null,null,null,"Z"]
[null,null,null,null,null,null,null,null,null,null,null,"Z"]
[null,null,null,null,null,null,null,null,null,null,null,"Z"]
[null,null,null,null,null,null,null,null,null,null,null,"Z"]
[null,null,null,null,null,null,null,null,null,null,null,"Z"]
[null,null,null,null,null,null,null,null,null,null,null,"Z"]
[null,null,null,null,null,null,null,null,null,null,null,"Z"]
[null,null,null,null,null,null,null,null,null,null,null,"Z"]
[null,null,null,null,null,null,null,null,null,null,null,"Z"]
[null,null,null,null,null,null,null,null,null,null,null,"Z"]
[null,null,null,null,null,null,null,null,null,null,null,"Z"]
[null,null,null,null,null,null,null,null,null,null,null,"Z"]
[null,null,null,null,null,null,null,null,null,null,null,"Z"]
[null,null,null,null,null,null,null,null,null,null,null,"Z"]
[null,null,null,null,null,null,null,null,null,null,null,"Z"]
[null,null,null,null,null,null,null,null,null,null,null,"Z"]
[null,null,null,null,null,null,null,null,null,null,null,"Z"]
[null,null,null,null,null,null,null,null,null,null,null,"Z"]
[null,null,null,null,null,null,null,null,null,null,null,"Z"]
[null,null,null,null,null,null,null,null,null,null,null,"Z"]
[null,null,null,null,null,null,null,null,null,null,null,"Z"]
[null,null,null,null,null,null,null,null,null,null,null,"Z"]
[null,null,null,null,null,null,null,null,null,null,null,"Z"]
[null,null,null,null,null,null,null,null,null,null,null,"Z"]
[null,null,null,null,null,null,null,null,null,null,null,"Z"]
[null,null,null,null,null,null,null,null,null,null,null,"Z"]
[null,null,null,null,null,null,null,null,null,null,null,"Z"]
[null,null,null,null,null,null,null,null,null,null,null,"Z"]
[null,null,null,null,null,null,null,null,null,null,null,"Z"]
[null,null,null,null,null,null,null,null,null,null,null,"Z"]
[null,null,null,null,null,null,null,null,null,null,null,"Z"]
[null,null,null,null,null,null,null,null,null,null,null,"Z"]
[null,null,null,null,null,null,null,null,null,null,null,"Z"]
[null,null,null,null,null,null,null,null,null,null,null,"Z"]
[null,null,null,null,null,null,null,null,null,null,null,"Z"]
[null,null,null,null,null,null,null,null,null,null,null,"Z"]
[null,null,null,null,null,null,null,null,null,null,null,"Z"]
[null,null,null,null,null,null,null,null,null,null,null,"Z"]
[null,null,null,null,null,null,null,null,null,null,null,"Z"]
[null,null,null,null,null,null,null,null,null,null,null,"Z"]
[null,null,null,null,null,null,null,null,null,null,null,"Z"]
[null,null,null,null,null,null,null,null,null,null,null,"Z"]
[null,null,null,null,null,null,null,null,null,null,null,"Z"]
[null,null,null,null,null,null,null,null,null,null,null,"Z"]
[null,null,null,null,null,null,null,null,null,null,null,"Z"]
[null,null,null,null,null,null,null,null,null,null,null,"Z"]
[null,null,null,null,null,null,null,null,null,null,null,"Z"]
[null,null,null,null,null,null,null,null,null,null,null,"Z"]
[null,null,null,null,null,null,null,null,null,null,null,"Z"]
[null,null,null,null,null,null,null,null,null,null,null,"Z"]
[null,null,null,null,null,null,null,null,null,null,null,"Z"]
[null,null,null,null,null,null,null,null,null,null,null,"Z"]
[null,null,null,null,null,null,null,null,null,null,null,"Z"]
[null,null,null,null,null,null,null,null,null,null,null,"Z"]
[null,null,null,null,null,null,null,null,null,null,null,"Z"]
[null,null,null,null,null,null,null,null,null,null,null,"Z"]
[null,null,null,null,null,null,null,null,null,null,null,"Z"]
[null,null,null,null,null,null,null,null,null,null,null,"Z"]
[null,null,null,null,null,null,null,null,null,null,null,"Z"]
[null,null,null,null,null,null,null,null,null,null,null,"Z"]
[null,null,null,null,null,null,null,null,null,null,null,"Z"]
[null,null,null,null,null,null,null,null,null,null,null,"Z"]
[null,null,null,null,null,null,null,null,null,null,null,"Z"]
[null,null,null,null,null,null,null,null,null,null,null,"Z"]
[null,null,null,null,null,null,null,null,null,null,null,"Z"]
[null,null,null,null,null,null,null,null,null,null,null,"Z"]
[null,null,null,null,null,null,null,null,null,null,null,"Z"]
[null,null,null,null,null,null,null,null,null,null,null,"Z"]
[null,null,null,null,null,null,null,null,null,null,null,"Z"]
[null,null,null,null,null,null,null,null,null,null,null,"Z"]
[null,null,null,null,null,null,null,null,null,null,null,"Z"]
[null,null,null,null,null,null,null,null,null,null,null,"Z"]
[null,null,null,null,null,null,null,null,null,null,null,"Z"]
[null,null,null,null,null,null,null,null,null,null,null,"Z"]
[null,null,null,null,null,null,null,null,null,null,null,"Z"]
[null,null,null,null,null,null,null,null,null,null,null,"Z"]
[null,null,null,null,null,null,null,null,null,null,null,"Z"]
[null,null,null,null,null,null,null,null,null,null,null,"Z"]
[null,null,null,null,null,null,null,null,null,null,null,"Z"]
[null,null,null,null,null,null,null,null,null,null,null,"Z"]
[null,null,null,null,null,null,null,null,null,null,null,"Z"]
[null,null,null,null,null,null,null,null,null,null,null,"Z"]
[null,null,null,null,null,null,null,null,null,null,null,"Z"]
[null,null,null,null,null,null,null,null,null,null,null,"Z"]
[null,null,null,null,null,null,null,null,null,null,null,"Z"]
[null,null,null,null,null,null,null,null,null,null,null,"Z"]
[null,null,null,null,null,null,null,null,null,null,null,"Z"]
[null,null,null,null,null,null,null,null,null,null,null,"Z"]
[null,null,null,null,null,null,null,null,null,null,null,"Z"]
[null,null,null,null,null,null,null,null,null,null,null,"Z"]
[null,null,null,null,null,null,null,null,null,null,null,"Z"]
[null,null,null,null,null,null,null,null,null,null,null,"Z"]
[null,null,null,null,null,null,null,null,null,null,null,"Z"]
[null,null,null,null,null,null,null,null,null,null,null,"Z"]
[null,null,null,null,null,null,null,null,null,null,null,"Z"]
[null,null,null,null,null,null,null,null,null,null,null,"Z"]
[null,null,null,null,null,null,null,null,null,null,null,"Z"]
[null,null,null,null,null,null,null,null,null,null,null,"Z"]
[null,null,null,null,null,null,null,null,null,null,null,"Z"]
[null,null,null,null,null,null,null,null,null,null,null,"Z"]
[null,null,null,null,null,null,null,null,null,null,null,"Z"]
[null,null,null,null,null,null,null,null,null,null,null,"Z"]
[null,null,null,null,null,null,null,null,null,null,null,"Z"]
[null,null,null,null,null,null,null,null,null,null,null,"Z"]
[null,null,null,null,null,null,null,null,null,null,null,"Z"]
[null,null,null,null,null,null,null,null,null,null,null,"Z"]
[null,null,null,null,null,null,null,null,null,null,null,"Z"]
[null,null,null,null,null,null,null,null,null,null,null,"Z"]
[null,null,null,null,null,null,null,null,null,null,null,"Z"]
[null,null,null,null,null,null,null,null,null,null,null,"Z"]
[null,null,null,null,null,null,null,null,null,null,null,"Z"]
[null,null,null,null,null,null,null,null,null,null,null,"Z"]
[null,null,null,null,null,null,null,null,null,null,null,"Z"]
[null,null,null,null,null,null,null,null,null,null,null,"Z"]
[null,null,null,null,null,null,null,null,null,null,null,"Z"]
[null,null,null,null,null,null,null,null,null,null,null,"Z"]
[null,null,null,null,null,null,null,null,null,null,null,"Z"]
[null,null,null,null,null,null,null,null,null,null,null,"Z"]
[null,null,null,null,null,null,null,null,null,null,null,"Z"]
[null,null,null,null,null,null,null,null,null,null,null,"Z"]
[null,null,null,null,null,null,null,null,null,null,null,"Z"]
[null,null,null,null,null,null,null,null,null,null,null,"Z"]
[null,null,null,null,null,null,null,null,null,null,null,"Z"]
[null,null,null,null,null,null,null,null,null,null,null,"Z"]
[null,null,null,null,null,null,null,null,null,null,null,"Z"]
[null,null,null,null,null,null,null,null,null,null,null,"Z"]
[null,null,null,null,null,null,null,null,null,null,null,"Z"]
[null,null,null,null,null,null,null,null,null,null,null,"Z"]
[null,null,null,null,null,null,null,null,null,null,null,"Z"]
[null,null,null,null,null,null,null,null,null,null,null,"Z"]
[null,null,null,null,null,null,null,null,null,null,null,"Z"]
[null,null,null,null,null,null,null,null,null,null,null,"Z"]
[null,null,null,null,null,null,null,null,null,null,null,"Z"]
[null,null,null,null,null,null,null,null,null,null,null,"Z"]
[null,null,null,null,null,null,null,null,null,null,null,"Z"]
[null,null,null,null,null,null,null,null,null,null,null,"Z"]
[null,null,null,null,null,null,null,null,null,null,null,"Z"]
[null,null,null,null,null,null,null,null,null,null,null,"Z"]
[null,null,null,null,null,null,null,null,null,null,null,"Z"]
[null,null,null,null,null,null,null,null,null,null,null,"Z"]
[null,null,null,null,null,null,null,null,null,null,null,"Z"]
[null,null,null,null,null,null,null,null,null,null,null,"Z"]
[null,null,null,null,null,null,null,null,null,null,null,"Z"]
[null,null,null,null,null,null,null,null,null,null,null,"Z"]
[null,null,null,null,null,null,null,null,null,null,null,"Z"]
[null,null,null,null,null,null,null,null,null,null,null,"Z"]
[null,null,null,null,null,null,null,null,null,null,null,"Z"]
[null,null,null,null,null,null,null,null,null,null,null,"Z"]
[null,null,null,null,null,null,null,null,null,null,null,"Z"]
[null,null,null,null,null,null,null,null,null,null,null,"Z"]
[null,null,null,null,null,null,null,null,null,null,null,"Z"]
[null,null,null,null,null,null,null,null,null,null,null,"Z"]
[null,null,null,null,null,null,null,null,null,null,null,"Z"]
[null,null,null,null,null,null,null,null,null,null,null,"Z"]
[null,null,null,null,null,null,null,null,null,null,null,"Z"]
[null,null,null,null,null,null,null,null,null,null,null,"Z"]
[null,null,null,null,null,null,null,null,null,null,null,"Z"]
[null,null,null,null,null,null,null,null,null,null,null,"Z"]
[null,null,null,null,null,null,null,null,null,null,null,"Z"]
[null,null,null,null,null,null,null,null,null,null,null,"Z"]
[null,null,null,null,null,null,null,null,null,null,null,"Z"]
[null,null,null,null,null,null,null,null,null,null,null,"Z"]
[null,null,null,null,null,null,null,null,null,null,null,"Z"]
[null,null,null,null,null,null,null,null,null,null,null,"Z"]
[null,null,null,null,null,null,null,null,null,null,null,"Z"]
[null,null,null,null,null,null,null,null,null,null,null,"Z"]
[null,null,null,null,null,null,null,null,null,null,null,"Z"]
[null,null,null,null,null,null,null,null,null,null,null,"Z"]
[null,null,null,null,null,null,null,null,null,null,null,"Z"]
[null,null,null,null,null,null,null,null,null,null,null,"Z"]
[null,null,null,null,null,null,null,null,null,null,null,"Z"]
[null,null,null,null,null,null,null,null,null,null,null,"Z"]
[null,null,null,null,null,null,null,null,null,null,null,"Z"]
[null,null,null,null,null,null,null,null,null,null,null,"Z"]
[null,null,null,null,null,null,null,null,null,null,null,"Z"]
[null,null,null,null,null,null,null,null,null,null,null,"Z"]
[null,null,null,null,null,null,null,null,null,null,null,"Z"]
[null,null,null,null,null,null,null,null,null,null,null,"Z"]
[null,null,null,null,null,null,null,null,null,null,null,"Z"]
[null,null,null,null,null,null,null,null,null,null,null,"Z"]
[null,null,null,null,null,null,null,null,null,null,null,"Z"]
[null,null,null,null,null,null,null,null,null,null,null,"Z"]
[null,null,null,null,null,null,null,null,null,null,null,"Z"]
[null,null,null,null,null,null,null,null,null,null,null,"Z"]
[null,null,null,null,null,null,null,null,null,null,null,"Z"]
[null,null,null,null,null,null,null,null,null,null,null,"Z"]
[null,null,null,null,null,null,null,null,null,null,null,"Z"]
[null,null,null,null,null,null,null,null,null,null,null,"Z"]
[null,null,null,null,null,null,null,null,null,null,null,"Z"]
[null,null,null,null,null,null,null,null,null,null,null,"Z"]
[null,null,null,null,null,null,null,null,null,null,null,"Z"]
[null,null,null,null,null,null,null,null,null,null,null,"Z"]
[null,null,null,null,null,null,null,null,null,null,null,"Z"]
[null,null,null,null,null,null,null,null,null,null,null,"Z"]
[null,null,null,null,null,null,null,null,null,null,null,"Z"]
[null,null,null,null,null,null,null,null,null,null,null,"Z"]
[null,null,null,null,null,null,null,null,null,null,null,"Z"]
[null,null,null,null,null,null,null,null,null,null,null,"Z"]
[null,null,null,null,null,null,null,null,null,null,null,"Z"]
[null,null,null,null,null,null,null,null,null,null,null,"Z"]
[null,null,null,null,null,null,null,null,null,null,null,"Z"]
[null,null,null,null,null,null,null,null,null,null,null,"Z"]
[null,null,null,null,null,null,null,null,null,null,null,"Z"]
[null,null,null,null,null,null,null,null,null,null,null,"Z"]
[null,null,null,null,null,null,null,null,null,null,null,"Z"]
[null,null,null,null,null,null,null,null,null,null,null,"Z"]
[null,null,null,null,null,null,null,null,null,null,null,"Z"]
[null,null,null,null,null,null,null,null,null,null,null,"Z"]
[null,null,null,null,null,null,null,null,null,null,null,"Z"]
[null,null,null,null,null,null,null,null,null,null,null,"Z"]
[null,null,null,null,null,null,null,null,null,null,null,"Z"]
[null,null,null,null,null,null,null,null,null,null,null,"Z"]
[null,null,null,null,null,null,null,null,null,null,null,"Z"]
[null,null,null,null,null,null,null,null,null,null,null,"Z"]
[null,null,null,null,null,null,null,null,null,null,null,"Z"]
[null,null,null,null,null,null,null,null,null,null,null,"Z"]
[null,null,null,null,null,null,null,null,null,null,null,"Z"]
[null,null,null,null,null,null,null,null,null,null,null,"Z"]
[null,null,null,null,null,null,null,null,null,null,null,"Z"]
[null,null,null,null,null,null,null,null,null,null,null,"Z"]
[null,null,null,null,null,null,null,null,null,null,null,"Z"]
[null,null,null,null,null,null,null,null,null,null,null,"Z"]
[null,null,null,null,null,null,null,null,null,null,null,"Z"]
[null,null,null,null,null,null,null,null,null,null,null,"Z"]
[null,null,null,null,null,null,null,null,null,null,null,"Z"]
[null,null,null,null,null,null,null,null,null,null,null,"Z"]
[null,null,null,null,null,null,null,null,null,null,null,"Z"]
[null,null,null,null,null,null,null,null,null,null,null,"Z"]
[null,null,null,null,null,null,null,null,null,null,null,"Z"]
[null,null,null,null,null,null,null,null,null,null,null,"Z"]
[null,null,null,null,null,null,null,null,null,null,null,"Z"]
[null,null,null,null,null,null,null,null,null,null,null,"Z"]
[null,null,null,null,null,null,null,null,null,null,null,"Z"]
[null,null,null,null,null,null,null,null,null,null,null,"Z"]
[null,null,null,null,null,null,null,null,null,null,null,"Z"]
[null,null,null,null,null,null,null,null,null,null,null,"Z"]
[null,null,null,null,null,null,null,null,null,null,null,"Z"]
[null,null,null,null,null,null,null,null,null,null,null,"Z"]
[null,null,null,null,null,null,null,null,null,null,null,"Z"]
[null,null,null,null,null,null,null,null,null,null,null,"Z"]
[null,null,null,null,null,null,null,null,null,null,null,"Z"]
[null,null,null,null,null,null,null,null,null,null,null,"Z"]
[null,null,null,null,null,null,null,null,null,null,null,"Z"]
[null,null,null,null,null,null,null,null,null,null,null,"Z"]
[null,null,null,null,null,null,null,null,null,null,null,"Z"]
[null,null,null,null,null,null,null,null,null,null,null,"Z"]
[null,null,null,null,null,null,null,null,null,null,null,"Z"]
[null,null,null,null,null,null,null,null,null,null,null,"Z"]
[null,null,null,null,null,null,null,null,null,null,null,"Z"]
[null,null,null,null,null,null,null,null,null,null,null,"Z"]
[null,null,null,null,null,null,null,null,null,null,null,"Z"]
[null,null,null,null,null,null,null,null,null,null,null,"Z"]
[null,null,null,null,null,null,null,null,null,null,null,"Z"]
[null,null,null,null,null,null,null,null,null,null,null,"Z"]
[null,null,null,null,null,null,null,null,null,null,null,"Z"]
[null,null,null,null,null,null,null,null,null,null,null,"Z"]
[null,null,null,null,null,null,null,null,null,null,null,"Z"]
[null,null,null,null,null,null,null,null,null,null,null,"Z"]
[null,null,null,null,null,null,null,null,null,null,null,"Z"]
[null,null,null,null,null,null,null,null,null,null,null,"Z"]
[null,null,null,null,null,null,null,null,null,null,null,"Z"]
[null,null,null,null,null,null,null,null,null,null,null,"Z"]
[null,null,null,null,null,null,null,null,null,null,null,"Z"]
[null,null,null,null,null,null,null,null,null,null,null,"Z"]
[null,null,null,null,null,null,null,null,null,null,null,"Z"]
[null,null,null,null,null,null,null,null,null,null,null,"Z"]
[null,null,null,null,null,null,null,null,null,null,null,"Z"]
[null,null,null,null,null,null,null,null,null,null,null,"Z"]
[null,null,null,null,null,null,null,null,null,null,null,"Z"]
[null,null,null,null,null,null,null,null,null,null,null,"Z"]
[null,null,null,null,null,null,null,null,null,null,null,"Z"]
[null,null,null,null,null,null,null,null,null,null,null,"Z"]
[null,null,null,null,null,null,null,null,null,null,null,"Z"]
[null,null,null,null,null,null,null,null,null,null,null,"Z"]
[null,null,null,null,null,null,null,null,null,null,null,"Z"]
[null,null,null,null,null,null,null,null,null,null,null,"Z"]
[null,null,null,null,null,null,null,null,null,null,null,"Z"]
[null,null,null,null,null,null,null,null,null,null,null,"Z"]
[null,null,null,null,null,null,null,null,null,null,null,"Z"]
[null,null,null,null,null,null,null,null,null,null,null,"Z"]
[null,null,null,null,null,null,null,null,null,null,null,"Z"]
[null,null,null,null,null,null,null,null,null,null,null,"Z"]
[null,null,null,null,null,null,null,null,null,null,null,"Z"]
[null,null,null,null,null,null,null,null,null,null,null,"Z"]
[null,null,null,null,null,null,null,null,null,null,null,"Z"]
[null,null,null,null,null,null,null,null,null,null,null,"Z"]
[null,null,null,null,null,null,null,null,null,null,null,"Z"]
[null,null,null,null,null,null,null,null,null,null,null,"Z"]
[null,null,null,null,null,null,null,null,null,null,null,"Z"]
[null,null,null,null,null,null,null,null,null,null,null,"Z"]
[null,null,null,null,null,null,null,null,null,null,null,"Z"]
[null,null,null,null,null,null,null,null,null,null,null,"Z"]
[null,null,null,null,null,null,null,null,null,null,null,"Z"]
[null,null,null,null,null,null,null,null,null,null,null,"Z"]
[null,null,null,null,null,null,null,null,null,null,null,"Z"]
[null,null,null,null,null,null,null,null,null,null,null,"Z"]
[null,null,null,null,null,null,null,null,null,null,null,"Z"]
[null,null,null,null,null,null,null,null,null,null,null,"Z"]
[null,null,null,null,null,null,null,null,null,null,null,"Z"]
[null,null,null,null,null,null,null,null,null,null,null,"Z"]
[null,null,null,null,null,null,null,null,null,null,null,"Z"]
[null,null,null,null,null,null,null,null,null,null,null,"Z"]
[null,null,null,null,null,null,null,null,null,null,null,"Z"]
[null,null,null,null,null,null,null,null,null,null,null,"Z"]
[null,null,null,null,null,null,null,null,null,null,null,"Z"]
[null,null,null,null,null,null,null,null,null,null,null,"Z"]
[null,null,null,null,null,null,null,null,null,null,null,"Z"]
[null,null,null,null,null,null,null,null,null,null,null,"Z"]
[null,null,null,null,null,null,null,null,null,null,null,"Z"]
[null,null,null,null,null,null,null,null,null,null,null,"Z"]
[null,null,null,null,null,null,null,null,null,null,null,"Z"]
[null,null,null,null,null,null,null,null,null,null,null,"Z"]
[null,null,null,null,null,null,null,null,null,null,null,"Z"]
[null,null,null,null,null,null,null,null,null,null,null,"Z"]
[null,null,null,null,null,null,null,null,null,null,null,"Z"]
[null,null,null,null,null,null,null,null,null,null,null,"Z"]
[null,null,null,null,null,null,null,null,null,null,null,"Z"]
[null,null,null,null,null,null,null,null,null,null,null,"Z"]
[null,null,null,null,null,null,null,null,null,null,null,"Z"]
[null,null,null,null,null,null,null,null,null,null,null,"Z"]
[null,null,null,null,null,null,null,null,null,null,null,"Z"]
[null,null,null,null,null,null,null,null,null,null,null,"Z"]
[null,null,null,null,null,null,null,null,null,null,null,"Z"]
[null,null,null,null,null,null,null,null,null,null,null,"Z"]
[null,null,null,null,null,null,null,null,null,null,null,"Z"]
[null,null,null,null,null,null,null,null,null,null,null,"Z"]
[null,null,null,null,null,null,null,null,null,null,null,"Z"]
[null,null,null,null,null,null,null,null,null,null,null,"Z"]
[null,null,null,null,null,null,null,null,null,null,null,"Z"]
[null,null,null,null,null,null,null,null,null,null,null,"Z"]
[null,null,null,null,null,null,null,null,null,null,null,"Z"]
[null,null,null,null,null,null,null,null,null,null,null,"Z"]
[null,null,null,null,null,null,null,null,null,null,null,"Z"]
[null,null,null,null,null,null,null,null,null,null,null,"Z"]
[null,null,null,null,null,null,null,null,null,null,null,"Z"]
[null,null,null,null,null,null,null,null,null,null,null,"Z"]
[null,null,null,null,null,null,null,null,null,null,null,"Z"]
[null,null,null,null,null,null,null,null,null,null,null,"Z"]
[null,null,null,null,null,null,null,null,null,null,null,"Z"]
[null,null,null,null,null,null,null,null,null,null,null,"Z"]
[null,null,null,null,null,null,null,null,null,null,null,"Z"]
[null,null,null,null,null,null,null,null,null,null,null,"Z"]
[null,null,null,null,null,null,null,null,null,null,null,"Z"]
[null,null,null,null,null,null,null,null,null,null,null,"Z"]
[null,null,null,null,null,null,null,null,null,null,null,"Z"]
[null,null,null,null,null,null,null,null,null,null,null,"Z"]
[null,null,null,null,null,null,null,null,null,null,null,"Z"]
[null,null,null,null,null,null,null,null,null,null,null,"Z"]
[null,null,null,null,null,null,null,null,null,null,null,"Z"]
[null,null,null,null,null,null,null,null,null,null,null,"Z"]
[null,null,null,null,null,null,null,null,null,null,null,"Z"]
[null,null,null,null,null,null,null,null,null,null,null,"Z"]
[null,null,null,null,null,null,null,null,null,null,null,"Z"]
[null,null,null,null,null,null,null,null,null,null,null,"Z"]
[null,null,null,null,null,null,null,null,null,null,null,"Z"]
[null,null,null,null,null,null,null,null,null,null,null,"Z"]
[null,null,null,null,null,null,null,null,null,null,null,"Z"]
[null,null,null,null,null,null,null,null,null,null,null,"Z"]
[null,null,null,null,null,null,null,null,null,null,null,"Z"]
[null,null,null,null,null,null,null,null,null,null,null,"Z"]
[null,null,null,null,null,null,null,null,null,null,null,"Z"]
[null,null,null,null,null,null,null,null,null,null,null,"Z"]
[null,null,null,null,null,null,null,null,null,null,null,"Z"]
[null,null,null,null,null,null,null,null,null,null,null,"Z"]
[null,null,null,null,null,null,null,null,null,null,null,"Z"]
[null,null,null,null,null,null,null,null,null,null,null,"Z"]
[null,null,null,null,null,null,null,null,null,null,null,"Z"]
[null,null,null,null,null,null,null,null,null,null,null,"Z"]
[null,null,null,null,null,null,null,null,null,null,null,"Z"]
[null,null,null,null,null,null,null,null,null,null,null,"Z"]
[null,null,null,null,null,null,null,null,null,null,null,"Z"]
[null,null,null,null,null,null,null,null,null,null,null,"Z"]
[null,null,null,null,null,null,null,null,null,null,null,"Z"]
[null,null,null,null,null,null,null,null,null,null,null,"Z"]
[null,null,null,null,null,null,null,null,null,null,null,"Z"]
[null,null,null,null,null,null,null,null,null,null,null,"Z"]
[null,null,null,null,null,null,null,null,null,null,null,"Z"]
[null,null,null,null,null,null,null,null,null,null,null,"Z"]
[null,null,null,null,null,null,null,null,null,null,null,"Z"]
[null,null,null,null,null,null,null,null,null,null,null,"Z"]
[null,null,null,null,null,null,null,null,null,null,null,"Z"]
[null,null,null,null,null,null,null,null,null,null,null,"Z"]
[null,null,null,null,null,null,null,null,null,null,null,"Z"]
[null,null,null,null,null,null,null,null,null,null,null,"Z"]
[null,null,null,null,null,null,null,null,null,null,null,"Z"]
[null,null,null,null,null,null,null,null,null,null,null,"Z"]
[null,null,null,null,null,null,null,null,null,null,null,"Z"]
[null,null,null,null,null,null,null,null,null,null,null,"Z"]
[null,null,null,null,null,null,null,null,null,null,null,"Z"]
[null,null,null,null,null,null,null,null,null,null,null,"Z"]
[null,null,null,null,null,null,null,null,null,null,null,"Z"]
[null,null,null,null,null,null,null,null,null,null,null,"Z"]
[null,null,null,null,null,null,null,null,null,null,null,"Z"]
[null,null,null,null,null,null,null,null,null,null,null,"Z"]
[null,null,null,null,null,null,null,null,null,null,null,"Z"]
[null,null,null,null,null,null,null,null,null,null,null,"Z"]
[null,null,null,null,null,null,null,null,null,null,null,"Z"]
[null,null,null,null,null,null,null,null,null,null,null,"Z"]
[null,null,null,null,null,null,null,null,null,null,null,"Z"]
[null,null,null,null,null,null,null,null,null,null,null,"Z"]
[null,null,null,null,null,null,null,null,null,null,null,"Z"]
[null,null,null,null,null,null,null,null,null,null,null,"Z"]
[null,null,null,null,null,null,null,null,null,null,null,"Z"]
[null,null,null,null,null,null,null,null,null,null,null,"Z"]
[null,null,null,null,null,null,null,null,null,null,null,"Z"]
[null,null,null,null,null,null,null,null,null,null,null,"Z"]
[null,null,null,null,null,null,null,null,null,null,null,"Z"]
[null,null,null,null,null,null,null,null,null,null,null,"Z"]
[null,null,null,null,null,null,null,null,null,null,null,"Z"]
[null,null,null,null,null,null,null,null,null,null,null,"Z"]
[null,null,null,null,null,null,null,null,null,null,null,"Z"]
[null,null,null,null,null,null,null,null,null,null,null,"Z"]
[null,null,null,null,null,null,null,null,null,null,null,"Z"]
[null,null,null,null,null,null,null,null,null,null,null,"Z"]
[null,null,null,null,null,null,null,null,null,null,null,"Z"]
[null,null,null,null,null,null,null,null,null,null,null,"Z"]
[null,null,null,null,null,null,null,null,null,null,null,"Z"]
[null,null,null,null,null,null,null,null,null,null,null,"Z"]
[null,null,null,null,null,null,null,null,null,null,null,"Z"]
[null,null,null,null,null,null,null,null,null,null,null,"Z"]
[null,null,null,null,null,null,null,null,null,null,null,"Z"]
[null,null,null,null,null,null,null,null,null,null,null,"Z"]
[null,null,null,null,null,null,null,null,null,null,null,"Z"]
[null,null,null,null,null,null,null,null,null,null,null,"Z"]
[null,null,null,null,null,null,null,null,null,null,null,"Z"]
[null,null,null,null,null,null,null,null,null,null,null,"Z"]
[null,null,null,null,null,null,null,null,null,null,null,"Z"]
[null,null,null,null,null,null,null,null,null,null,null,"Z"]
[null,null,null,null,null,null,null,null,null,null,null,"Z"]
[null,null,null,null,null,null,null,null,null,null,null,"Z"]
[null,null,null,null,null,null,null,null,null,null,null,"Z"]
[null,null,null,null,null,null,null,null,null,null,null,"Z"]
[null,null,null,null,null,null,null,null,null,null,null,"Z"]
[null,null,null,null,null,null,null,null,null,null,null,"Z"]
[null,null,null,null,null,null,null,null,null,null,null,"Z"]
[null,null,null,null,null,null,null,null,null,null,null,"Z"]
[null,null,null,null,null,null,null,null,null,null,null,"Z"]
[null,null,null,null,null,null,null,null,null,null,null,"Z"]
[null,null,null,null,null,null,null,null,null,null,null,"Z"]
[null,null,null,null,null,null,null,null,null,null,null,"Z"]
[null,null,null,null,null,null,null,null,null,null,null,"Z"]
[null,null,null,null,null,null,null,null,null,null,null,"Z"]
[null,null,null,null,null,null,null,null,null,null,null,"Z"]
[null,null,null,null,null,null,null,null,null,null,null,"Z"]
[null,null,null,null,null,null,null,null,null,null,null,"Z"]
[null,null,null,null,null,null,null,null,null,null,null,"Z"]
[null,null,null,null,null,null,null,null,null,null,null,"Z"]
[null,null,null,null,null,null,null,null,null,null,null,"Z"]
[null,null,null,null,null,null,null,null,null,null,null,"Z"]
[null,null,null,null,null,null,null,null,null,null,null,"Z"]
[null,null,null,null,null,null,null,null,null,null,null,"Z"]
[null,null,null,null,null,null,null,null,null,null,null,"Z"]
[null,null,null,null,null,null,null,null,null,null,null,"Z"]
[null,null,null,null,null,null,null,null,null,null,null,"Z"]
[null,null,null,null,null,null,null,null,null,null,null,"Z"]
[null,null,null,null,null,null,null,null,null,null,null,"Z"]
[null,null,null,null,null,null,null,null,null,null,null,"Z"]
[null,null,null,null,null,null,null,null,null,null,null,"Z"]
[null,null,null,null,null,null,null,null,null,null,null,"Z"]
[null,null,null,null,null,null,null,null,null,null,null,"Z"]
[null,null,null,null,null,null,null,null,null,null,null,"Z"]
[null,null,null,null,null,null,null,null,null,null,null,"Z"]
[null,null,null,null,null,null,null,null,null,null,null,"Z"]
[null,null,null,null,null,null,null,null,null,null,null,"Z"]
[null,null,null,null,null,null,null,null,null,null,null,"Z"]
[null,null,null,null,null,null,null,null,null,null,null,"Z"]
[null,null,null,null,null,null,null,null,null,null,null,"Z"]
[null,null,null,null,null,null,null,null,null,null,null,"Z"]
[null,null,null,null,null,null,null,null,null,null,null,"Z"]
[null,null,null,null,null,null,null,null,null,null,null,"Z"]
[null,null,null,null,null,null,null,null,null,null,null,"Z"]
[null,null,null,null,null,null,null,null,null,null,null,"Z"]
[null,null,null,null,null,null,null,null,null,null,null,"Z"]
[null,null,null,null,null,null,null,null,null,null,null,"Z"]
[null,null,null,null,null,null,null,null,null,null,null,"Z"]
[null,null,null,null,null,null,null,null,null,null,null,"Z"]
[null,null,null,null,null,null,null,null,null,null,null,"Z"]
[null,null,null,null,null,null,null,null,null,null,null,"Z"]
[null,null,null,null,null,null,null,null,null,null,null,"Z"]
[null,null,null,null,null,null,null,null,null,null,null,"Z"]
[null,null,null,null,null,null,null,null,null,null,null,"Z"]
[null,null,null,null,null,null,null,null,null,null,null,"Z"]
[null,null,null,null,null,null,null,null,null,null,null,"Z"]
[null,null,null,null,null,null,null,null,null,null,null,"Z"]
[null,null,null,null,null,null,null,null,null,null,null,"Z"]
[null,null,null,null,null,null,null,null,null,null,null,"Z"]
[null,null,null,null,null,null,null,null,null,null,null,"Z"]
[null,null,null,null,null,null,null,null,null,null,null,"Z"]
[null,null,null,null,null,null,null,null,null,null,null,"Z"]
[null,null,null,null,null,null,null,null,null,null,null,"Z"]
[null,null,null,null,null,null,null,null,null,null,null,"Z"]
[null,null,null,null,null,null,null,null,null,null,null,"Z"]
[null,null,null,null,null,null,null,null,null,null,null,"Z"]
[null,null,null,null,null,null,null,null,null,null,null,"Z"]
[null,null,null,null,null,null,null,null,null,null,null,"Z"]
[null,null,null,null,null,null,null,null,null,null,null,"Z"]
[null,null,null,null,null,null,null,null,null,null,null,"Z"]
[null,null,null,null,null,null,null,null,null,null,null,"Z"]
[null,null,null,null,null,null,null,null,null,null,null,"Z"]
[null,null,null,null,null,null,null,null,null,null,null,"Z"]
[null,null,null,null,null,null,null,null,null,null,null,"Z"]
[null,null,null,null,null,null,null,null,null,null,null,"Z"]
[null,null,null,null,null,null,null,null,null,null,null,"Z"]
[null,null,null,null,null,null,null,null,null,null,null,"Z"]
[null,null,null,null,null,null,null,null,null,null,null,"Z"]
[null,null,null,null,null,null,null,null,null,null,null,"Z"]
[null,null,null,null,null,null,null,null,null,null,null,"Z"]
[null,null,null,null,null,null,null,null,null,null,null,"Z"]
[null,null,null,null,null,null,null,null,null,null,null,"Z"]
[null,null,null,null,null,null,null,null,null,null,null,"Z"]
[null,null,null,null,null,null,null,null,null,null,null,"Z"]
[null,null,null,null,null,null,null,null,null,null,null,"Z"]
[null,null,null,null,null,null,null,null,null,null,null,"Z"]
[null,null,null,null,null,null,null,null,null,null,null,"Z"]
[null,null,null,null,null,null,null,null,null,null,null,"Z"]
[null,null,null,null,null,null,null,null,null,null,null,"Z"]
[null,null,null,null,null,null,null,null,null,null,null,"Z"]
[null,null,null,null,null,null,null,null,null,null,null,"Z"]
[null,null,null,null,null,null,null,null,null,null,null,"Z"]
[null,null,null,null,null,null,null,null,null,null,null,"Z"]
[null,null,null,null,null,null,null,null,null,null,null,"Z"]
[null,null,null,null,null,null,null,null,null,null,null,"Z"]
[null,null,null,null,null,null,null,null,null,null,null,"Z"]
[null,null,null,null,null,null,null,null,null,null,null,"Z"]
[null,null,null,null,null,null,null,null,null,null,null,"Z"]
[null,null,null,null,null,null,null,null,null,null,null,"Z"]
[null,null,null,null,null,null,null,null,null,null,null,"Z"]
[null,null,null,null,null,null,null,null,null,null,null,"Z"]
[null,null,null,null,null,null,null,null,null,null,null,"Z"]
[null,null,null,null,null,null,null,null,null,null,null,"Z"]
[null,null,null,null,null,null,null,null,null,null,null,"Z"]
[null,null,null,null,null,null,null,null,null,null,null,"Z"]
[null,null,null,null,null,null,null,null,null,null,null,"Z"]
[null,null,null,null,null,null,null,null,null,null,null,"Z"]
[null,null,null,null,null,null,null,null,null,null,null,"Z"]
[null,null,null,null,null,null,null,null,null,null,null,"Z"]
[null,null,null,null,null,null,null,null,null,null,null,"Z"]
[null,null,null,null,null,null,null,null,null,null,null,"Z"]
[null,null,null,null,null,null,null,null,null,null,null,"Z"]
[null,null,null,null,null,null,null,null,null,null,null,"Z"]
[null,null,null,null,null,null,null,null,null,null,null,"Z"]
[null,null,null,null,null,null,null,null,null,null,null,"Z"]
[null,null,null,null,null,null,null,null,null,null,null,"Z"]
[null,null,null,null,null,null,null,null,null,null,null,"Z"]
[null,null,null,null,null,null,null,null,null,null,null,"Z"]
[null,null,null,null,null,null,null,null,null,null,null,"Z"]
[null,null,null,null,null,null,null,null,null,null,null,"Z"]
[null,null,null,null,null,null,null,null,null,null,null,"Z"]
[null,null,null,null,null,null,null,null,null,null,null,"Z"]
[null,null,null,null,null,null,null,null,null,null,null,"Z"]
[null,null,null,null,null,null,null,null,null,null,null,"Z"]
[null,null,null,null,null,null,null,null,null,null,null,"Z"]
[null,null,null,null,null,null,null,null,null,null,null,"Z"]
[null,null,null,null,null,null,null,null,null,null,null,"Z"]
[null,null,null,null,null,null,null,null,null,null,null,"Z"]
[null,null,null,null,null,null,null,null,null,null,null,"Z"]
[null,null,null,null,null,null,null,null,null,null,null,"Z"]
[null,null,null,null,null,null,null,null,null,null,null,"Z"]
[null,null,null,null,null,null,null,null,null,null,null,"Z"]
[null,null,null,null,null,null,null,null,null,null,null,"Z"]
[null,null,null,null,null,null,null,null,null,null,null,"Z"]
[null,null,null,null,null,null,null,null,null,null,null,"Z"]
[null,null,null,null,null,null,null,null,null,null,null,"Z"]
[null,null,null,null,null,null,null,null,null,null,null,"Z"]
[null,null,null,null,null,null,null,null,null,null,null,"Z"]
[null,null,null,null,null,null,null,null,null,null,null,"Z"]
[null,null,null,null,null,null,null,null,null,null,null,"Z"]
[null,null,null,null,null,null,null,null,null,null,null,"Z"]
[null,null,null,null,null,null,null,null,null,null,null,"Z"]
[null,null,null,null,null,null,null,null,null,null,null,"Z"]
[null,null,null,null,null,null,null,null,null,null,null,"Z"]
[null,null,null,null,null,null,null,null,null,null,null,"Z"]
[null,null,null,null,null,null,null,null,null,null,null,"Z"]
[null,null,null,null,null,null,null,null,null,null,null,"Z"]
[null,null,null,null,null,null,null,null,null,null,null,"Z"]
[null,null,null,null,null,null,null,null,null,null,null,"Z"]
[null,null,null,null,null,null,null,null,null,null,null,"Z"]
[null,null,null,null,null,null,null,null,null,null,null,"Z"]
[null,null,null,null,null,null,null,null,null,null,null,"Z"]
[null,null,null,null,null,null,null,null,null,null,null,"Z"]
[null,null,null,null,null,null,null,null,null,null,null,"Z"]
[null,null,null,null,null,null,null,null,null,null,null,"Z"]
[null,null,null,null,null,null,null,null,null,null,null,"Z"]
[null,null,null,null,null,null,null,null,null,null,null,"Z"]
[null,null,null,null,null,null,null,null,null,null,null,"Z"]
[null,null,null,null,null,null,null,null,null,null,null,"Z"]
[null,null,null,null,null,null,null,null,null,null,null,"Z"]
[null,null,null,null,null,null,null,null,null,null,null,"Z"]
[null,null,null,null,null,null,null,null,null,null,null,"Z"]
[null,null,null,null,null,null,null,null,null,null,null,"Z"]
[null,null,null,null,null,null,null,null,null,null,null,"Z"]
[null,null,null,null,null,null,null,null,null,null,null,"Z"]
[null,null,null,null,null,null,null,null,null,null,null,"Z"]
[null,null,null,null,null,null,null,null,null,null,null,"Z"]
[null,null,null,null,null,null,null,null,null,null,null,"Z"]
[null,null,null,null,null,null,null,null,null,null,null,"Z"]
[null,null,null,null,null,null,null,null,null,null,null,"Z"]
[null,null,null,null,null,null,null,null,null,null,null,"Z"]
[null,null,null,null,null,null,null,null,null,null,null,"Z"]
[null,null,null,null,null,null,null,null,null,null,null,"Z"]
[null,null,null,null,null,null,null,null,null,null,null,"Z"]
[null,null,null,null,null,null,null,null,null,null,null,"Z"]
[null,null,null,null,null,null,null,null,null,null,null,"Z"]
[null,null,null,null,null,null,null,null,null,null,null,"Z"]
[null,null,null,null,null,null,null,null,null,null,null,"Z"]
[null,null,null,null,null,null,null,null,null,null,null,"Z"]
[null,null,null,null,null,null,null,null,null,null,null,"Z"]
[null,null,null,null,null,null,null,null,null,null,null,"Z"]
[null,null,null,null,null,null,null,null,null,null,null,"Z"]
[null,null,null,null,null,null,null,null,null,null,null,"Z"]
[null,null,null,null,null,null,null,null,null,null,null,"Z"]
[null,null,null,null,null,null,null,null,null,null,null,"Z"]
[null,null,null,null,null,null,null,null,null,null,null,"Z"]
[null,null,null,null,null,null,null,null,null,null,null,"Z"]
[null,null,null,null,null,null,null,null,null,null,null,"Z"]
[null,null,null,null,null,null,null,null,null,null,null,"Z"]
[null,null,null,null,null,null,null,null,null,null,null,"Z"]
[null,null,null,null,null,null,null,null,null,null,null,"Z"]
[null,null,null,null,null,null,null,null,null,null,null,"Z"]
[null,null,null,null,null,null,null,null,null,null,null,"Z"]
[null,null,null,null,null,null,null,null,null,null,null,"Z"]
[null,null,null,null,null,null,null,null,null,null,null,"Z"]
[null,null,null,null,null,null,null,null,null,null,null,"Z"]
[null,null,null,null,null,null,null,null,null,null,null,"Z"]
[null,null,null,null,null,null,null,null,null,null,null,"Z"]
[null,null,null,null,null,null,null,null,null,null,null,"Z"]
[null,null,null,null,null,null,null,null,null,null,null,"Z"]
[null,null,null,null,null,null,null,null,null,null,null,"Z"]
[null,null,null,null,null,null,null,null,null,null,null,"Z"]
[null,null,null,null,null,null,null,null,null,null,null,"Z"]
[null,null,null,null,null,null,null,null,null,null,null,"Z"]
[null,null,null,null,null,null,null,null,null,null,null,"Z"]
[null,null,null,null,null,null,null,null,null,null,null,"Z"]
[null,null,null,null,null,null,null,null,null,null,null,"Z"]
[null,null,null,null,null,null,null,null,null,null,null,"Z"]
[null,null,null,null,null,null,null,null,null,null,null,"Z"]
[null,null,null,null,null,null,null,null,null,null,null,"Z"]
[null,null,null,null,null,null,null,null,null,null,null,"Z"]
[null,null,null,null,null,null,null,null,null,null,null,"Z"]
[null,null,null,null,null,null,null,null,null,null,null,"Z"]
[null,null,null,null,null,null,null,null,null,null,null,"Z"]
[null,null,null,null,null,null,null,null,null,null,null,"Z"]
[null,null,null,null,null,null,null,null,null,null,null,"Z"]
[null,null,null,null,null,null,null,null,null,null,null,"Z"]
[null,null,null,null,null,null,null,null,null,null,null,"Z"]
[null,null,null,null,null,null,null,null,null,null,null,"Z"]
[null,null,null,null,null,null,null,null,null,null,null,"Z"]
[null,null,null,null,null,null,null,null,null,null,null,"Z"]
[null,null,null,null,null,null,null,null,null,null,null,"Z"]
[null,null,null,null,null,null,null,null,null,null,null,"Z"]
[null,null,null,null,null,null,null,null,null,null,null,"Z"]
[null,null,null,null,null,null,null,null,null,null,null,"Z"]
[null,null,null,null,null,null,null,null,null,null,null,"Z"]
[null,null,null,null,null,null,null,null,null,null,null,"Z"]
[null,null,null,null,null,null,null,null,null,null,null,"Z"]
[null,null,null,null,null,null,null,null,null,null,null,"Z"]
[null,null,null,null,null,null,null,null,null,null,null,"Z"]
[null,null,null,null,null,null,null,null,null,null,null,"Z"]
[null,null,null,null,null,null,null,null,null,null,null,"Z"]
[null,null,null,null,null,null,null,null,null,null,null,"Z"]
[null,null,null,null,null,null,null,null,null,null,null,"Z"]
[null,null,null,null,null,null,null,null,null,null,null,"Z"]
[null,null,null,null,null,null,null,null,null,null,null,"Z"]
[null,null,null,null,null,null,null,null,null,null,null,"Z"]
[null,null,null,null,null,null,null,null,null,null,null,"Z"]
[null,null,null,null,null,null,null,null,null,null,null,"Z"]
[null,null,null,null,null,null,null,null,null,null,null,"Z"]
[null,null,null,null,null,null,null,null,null,null,null,"Z"]
[null,null,null,null,null,null,null,null,null,null,null,"Z"]
[null,null,null,null,null,null,null,null,null,null,null,"Z"]
[null,null,null,null,null,null,null,null,null,null,null,"Z"]
[null,null,null,null,null,null,null,null,null,null,null,"Z"]
[null,null,null,null,null,null,null,null,null,null,null,"Z"]
[null,null,null,null,null,null,null,null,null,null,null,"Z"]
[null,null,null,null,null,null,null,null,null,null,null,"Z"]
[null,null,null,null,null,null,null,null,null,null,null,"Z"]
[null,null,null,null,null,null,null,null,null,null,null,"Z"]
[null,null,null,null,null,null,null,null,null,null,null,"Z"]
[null,null,null,null,null,null,null,null,null,null,null,"Z"]
[null,null,null,null,null,null,null,null,null,null,null,"Z"]
[null,null,null,null,null,null,null,null,null,null,null,"Z"]
[null,null,null,null,null,null,null,null,null,null,null,"Z"]
[null,null,null,null,null,null,null,null,null,null,null,"Z"]
[null,null,null,null,null,null,null,null,null,null,null,"Z"]
[null,null,null,null,null,null,null,null,null,null,null,"Z"]
[null,null,null,null,null,null,null,null,null,null,null,"Z"]
[null,null,null,null,null,null,null,null,null,null,null,"Z"]
[null,null,null,null,null,null,null,null,null,null,null,"Z"]
[null,null,null,null,null,null,null,null,null,null,null,"Z"]
[null,null,null,null,null,null,null,null,null,null,null,"Z"]
[null,null,null,null,null,null,null,null,null,null,null,"Z"]
[null,null,null,null,null,null,null,null,null,null,null,"Z"]
[null,null,null,null,null,null,null,null,null,null,null,"Z"]
[null,null,null,null,null,null,null,null,null,null,null,"Z"]
[null,null,null,null,null,null,null,null,null,null,null,"Z"]
[null,null,null,null,null,null,null,null,null,null,null,"Z"]
[null,null,null,null,null,null,null,null,null,null,null,"Z"]
[null,null,null,null,null,null,null,null,null,null,null,"Z"]
[null,null,null,null,null,null,null,null,null,null,null,"Z"]
[null,null,null,null,null,null,null,null,null,null,null,"Z"]
[null,null,null,null,null,null,null,null,null,null,null,"Z"]
[null,null,null,null,null,null,null,null,null,null,null,"Z"]
[null,null,null,null,null,null,null,null,null,null,null,"Z"]
[null,null,null,null,null,null,null,null,null,null,null,"Z"]
[null,null,null,null,null,null,null,null,null,null,null,"Z"]
[null,null,null,null,null,null,null,null,null,null,null,"Z"]
[null,null,null,null,null,null,null,null,null,null,null,"Z"]
[null,null,null,null,null,null,null,null,null,null,null,"Z"]
[null,null,null,null,null,null,null,null,null,null,null,"Z"]
[null,null,null,null,null,null,null,null,null,null,null,"Z"]
[null,null,null,null,null,null,null,null,null,null,null,"Z"]
[null,null,null,null,null,null,null,null,null,null,null,"Z"]
[null,null,null,null,null,null,null,null,null,null,null,"Z"]
[null,null,null,null,null,null,null,null,null,null,null,"Z"]
[null,null,null,null,null,null,null,null,null,null,null,"Z"]
[null,null,null,null,null,null,null,null,null,null,null,"Z"]
[null,null,null,null,null,null,null,null,null,null,null,"Z"]
[null,null,null,null,null,null,null,null,null,null,null,"Z"]
[null,null,null,null,null,null,null,null,null,null,null,"Z"]
[null,null,null,null,null,null,null,null,null,null,null,"Z"]
[null,null,null,null,null,null,null,null,null,null,null,"Z"]
[null,null,null,null,null,null,null,null,null,null,null,"Z"]
[null,null,null,null,null,null,null,null,null,null,null,"Z"]
[null,null,null,null,null,null,null,null,null,null,null,"Z"]
[null,null,null,null,null,null,null,null,null,null,null,"Z"]
[null,null,null,null,null,null,null,null,null,null,null,"Z"]
[null,null,null,null,null,null,null,null,null,null,null,"Z"]
[null,null,null,null,null,null,null,null,null,null,null,"Z"]
[null,null,null,null,null,null,null,null,null,null,null,"Z"]
[null,null,null,null,null,null,null,null,null,null,null,"Z"]
[null,null,null,null,null,null,null,null,null,null,null,"Z"]
[null,null,null,null,null,null,null,null,null,null,null,"Z"]
[null,null,null,null,null,null,null,null,null,null,null,"Z"]
[null,null,null,null,null,null,null,null,null,null,null,"Z"]
[null,null,null,null,null,null,null,null,null,null,null,"Z"]
[null,null,null,null,null,null,null,null,null,null,null,"Z"]
[null,null,null,null,null,null,null,null,null,null,null,"Z"]
[null,null,null,null,null,null,null,null,null,null,null,"Z"]
[null,null,null,null,null,null,null,null,null,null,null,"Z"]
[null,null,null,null,null,null,null,null,null,null,null,"Z"]
[null,null,null,null,null,null,null,null,null,null,null,"Z"]
[null,null,null,null,null,null,null,null,null,null,null,"Z"]
[null,null,null,null,null,null,null,null,null,null,null,"Z"]
[null,null,null,null,null,null,null,null,null,null,null,"Z"]
[null,null,null,null,null,null,null,null,null,null,null,"Z"]
[null,null,null,null,null,null,null,null,null,null,null,"Z"]
[null,null,null,null,null,null,null,null,null,null,null,"Z"]
[null,null,null,null,null,null,null,null,null,null,null,"Z"]
[null,null,null,null,null,null,null,null,null,null,null,"Z"]
[null,null,null,null,null,null,null,null,null,null,null,"Z"]
[null,null,null,null,null,null,null,null,null,null,null,"Z"]
[null,null,null,null,null,null,null,null,null,null,null,"Z"]
[null,null,null,null,null,null,null,null,null,null,null,"Z"]
[null,null,null,null,null,null,null,null,null,null,null,"Z"]
[null,null,null,null,null,null,null,null,null,null,null,"Z"]
[null,null,null,null,null,null,null,null,null,null,null,"Z"]
[null,null,null,null,null,null,null,null,null,null,null,"Z"]
[null,null,null,null,null,null,null,null,null,null,null,"Z"]
[null,null,null,null,null,null,null,null,null,null,null,"Z"]
[null,null,null,null,null,null,null,null,null,null,null,"Z"]
[null,null,null,null,null,null,null,null,null,null,null,"Z"]
[null,null,null,null,null,null,null,null,null,null,null,"Z"]
[null,null,null,null,null,null,null,null,null,null,null,"Z"]
[null,null,null,null,null,null,null,null,null,null,null,"Z"]
[null,null,null,null,null,null,null,null,null,null,null,"Z"]
[null,null,null,null,null,null,null,null,null,null,null,"Z"]
[null,null,null,null,null,null,null,null,null,null,null,"Z"]
[null,null,null,null,null,null,null,null,null,null,null,"Z"]
[null,null,null,null,null,null,null,null,null,null,null,"Z"]
[null,null,null,null,null,null,null,null,null,null,null,"Z"]
[null,null,null,null,null,null,null,null,null,null,null,"Z"]
[null,null,null,null,null,null,null,null,null,null,null,"Z"]
[null,null,null,null,null,null,null,null,null,null,null,"Z"]
[null,null,null,null,null,null,null,null,null,null,null,"Z"]
[null,null,null,null,null,null,null,null,null,null,null,"Z"]
[null,null,null,null,null,null,null,null,null,null,null,"Z"]
[null,null,null,null,null,null,null,null,null,null,null,"Z"]
[null,null,null,null,null,null,null,null,null,null,null,"Z"]
[null,null,null,null,null,null,null,null,null,null,null,"Z"]
[null,null,null,null,null,null,null,null,null,null,null,"Z"]
[null,null,null,null,null,null,null,null,null,null,null,"Z"]
[null,null,null,null,null,null,null,null,null,null,null,"Z"]
[null,null,null,null,null,null,null,null,null,null,null,"Z"]
[null,null,null,null,null,null,null,null,null,null,null,"Z"]
[null,null,null,null,null,null,null,null,null,null,null,"Z"]
[null,null,null,null,null,null,null,null,null,null,null,"Z"]
[null,null,null,null,null,null,null,null,null,null,null,"Z"]
[null,null,null,null,null,null,null,null,null,null,null,"Z"]
[null,null,null,null,null,null,null,null,null,null,null,"Z"]
[null,null,null,null,null,null,null,null,null,null,null,"Z"]
[null,null,null,null,null,null,null,null,null,null,null,"Z"]

{"sheet":"KHPTRF","index":13,"n_rows":1,"n_cols":19,"rows_kept":1,"cut":false,"hidden":true,"merged":[]}
["BMNCD","BMNNM","DATNO","DATKB","APMNGNO","SRMLINNO","PRRLINNO","LINNOEX","DTLLINNO","GRF02","ORF02","MRF04","SRF05","RFNO14","MCNNO","RLWTCPOP","RLWTCINV","RLLWTCRU","TCMMVB"]

{"sheet":"KHPTRH","index":14,"n_rows":1,"n_cols":18,"rows_kept":1,"cut":false,"hidden":true,"merged":[]}
["BMNCD","BMNNM","DATNO","DATKB","APMNGNO","SRMLINNO","PRRLINNO","LINNOEX","GRF02","ORF02","MRF04","SRF05","RFNO14","MCNNO","RLWTCPOP","RLWTCINV","RLLWTCRU","TCMMVB"]

{"sheet":"KHPTRI","index":15,"n_rows":1,"n_cols":15,"rows_kept":1,"cut":false,"hidden":true,"merged":[]}
["BMNCD","BMNNM","DATNO","DATKB","APMNGNO","SRMLINNO","PRRLINNO","DATALINE","LINNOEX","GRF02","ORF02","MRF04","SRF05","RFNO14","RCCFNO"]